Workbook

Sheet 심의안건
A1: 2019년도 제4회 예천군 보조금심의위원회 대상자선정심의 조서
K2: (단위 : 천원)
A3: 부서명 | B3: 보 조 사 업 자 | C3: 보 조 사 업 명 | D3: 과목명 | E3: 사 업 내 용 | F3: 2018년 지원액 | G3: 계 | H3: 보조금 | I3: 자부담 | J3: 1차(해당부서) | K3: 2차(예산부서) | L3: 3차(위원회)
A4: 계 | C4: =SUBTOTAL(103,C5:C89)&"건" -> 78건 | F4: =F5+F9+F11+F16+F18+F48+F88 -> 4,124,787 | G4: =G5+G9+G11+G16+G18+G48+G88 -> 5,586,148 | H4: 3,357,091 | I4: 2,229,057 | J4: 3,357,091 | K4: 3,357,091 | L4: 3,357,091
A5: 주민복지실 소계 | C5: =SUBTOTAL(103,C6:C8)&"건" -> 3건 | F5: =SUBTOTAL(9,F6:F8) -> 64,000 | G5: =SUBTOTAL(9,G6:G8) -> 339,689 | H5: 337,410 | I5: 2,279 | J5: 337,410 | K5: 337,410 | L5: 337,410
A6: 주민복지실 | B6: 선2리 노인회 외 2개소 (대상자 내역 별지) | C6: 경로당 신축 | D6: 민간자본사업보조 (자체재원) | E6: 경로당 신축 : 100,000(3개소) | F6: 60,000 | G6: =SUM(H6:I6) -> 300,000 | H6: 300,000 | I6: 0 | J6: 300,000 | K6: 300,000 | L6: 300,000
A7: 주민복지실 | B7: 군립용문어린이집 외 14개소 (대상자 내역 별지) | C7: 어린이집 환경개선비 지원사업 | D7: 사회복지사업보조 | E7: 공기청정기 설치, 안전용품 구입 및 도배 등 소규모 개보수 | F7: 3,000 | G7: =SUM(H7:I7) -> 9,779 | H7: 7,500 | I7: 2,279 | J7: 7,500 | K7: 7,500 | L7: 7,500
A8: 주민복지실 | B8: 참길지역아동센터 | C8: 지역아동센터 환경개선 지원 | D8: 사회복지사업보조 | E8: 지역아동센터 환경개선(중문, 붙받이장 설치. 주방 수리 등) | F8: 1,000 | G8: 29,910 | H8: 29,910 | I8: 0 | J8: 29,910 | K8: 29,910 | L8: 29,910
A9: 새마을경제과 소계 | C9: =SUBTOTAL(103,C10:C10)&"건" -> 1건 | F9: =SUBTOTAL(9,F10:F10) -> 0 | G9: =SUBTOTAL(9,G10:G10) -> 100,000 | H9: =SUBTOTAL(9,H10:H10) -> 100,000 | I9: =SUBTOTAL(9,I10:I10) -> 0 | J9: =SUBTOTAL(9,J10:J10) -> 100,000 | K9: =SUBTOTAL(9,K10:K10) -> 100,000 | L9: 100,000
A10: 새마을경제과 | B10: 예천읍 대심1길 72-6 솔네움 106호 석*규 (팀원 2명 - 안*준, 이*진) | C10: 지역혁신일자리지원프로젝트 (퀵 서비스 청년창업 지원사업) | D10: 민간경상사업보조 | E10: 100,000,000원 * 1식 | F10: 0 | G10: =SUM(H10:I10) -> 100,000 | H10: 100,000 | I10: 0 | J10: 100,000 | K10: 100,000 | L10: 100,000
A11: 문화관광과 소계 | C11: =SUBTOTAL(103,C12:C15)&"건" -> 4건 | F11: =SUBTOTAL(9,F12:F15) -> 70,000 | G11: =SUBTOTAL(9,G12:G15) -> 240,000 | H11: 240,000 | I11: 0 | J11: 240,000 | K11: 240,000 | L11: 240,000
A12: 문화관광과 | B12: (사)공연제작 엑터스토리 (대표 김*만) | C12: 2019 예천스마트폰영화제 지원 | D12: 민간경상사업보조 | E12: 온라인공모운영, 집체교육, 영화제 개최 | F12: 0 | G12: =SUM(H12:I12) -> 170,000 | H12: 170,000 | I12: 0 | J12: 170,000 | K12: 170,000 | L12: 170,000
A13: 문화관광과 | B13: 한국국악협회 예천군지부(대표 장*자) | C13: 우리 민요활동 지원(경창대회) | D13: 민간경상사업보조 | E13: 제8회 아리랑전국경창대회 | F13: 10,000 | G13: =SUM(H13:I13) -> 10,000 | H13: 10,000 | I13: 0 | J13: 10,000 | K13: 10,000 | L13: 10,000
A14: 문화관광과 | B14: 예천토속아리랑보존회(대표 최*순) | C14: 우리 민요활동 지원(국악대향연) | D14: 민간경상사업보조 | E14: 군민과 함께하는 국악대향연 | F14: 10,000 | G14: 10,000 | H14: 10,000 | I14: 0 | J14: 10,000 | K14: 10,000 | L14: 10,000
A15: 문화관광과 | B15: (사)한국예총 예천지회(대표 권*휘) | C15: 삼강주막 상설공연장 운영 | D15: 민간경상사업보조 | E15: 상설공연장 운영 1식 | F15: 50,000 | G15: 50,000 | H15: 50,000 | I15: 0 | J15: 50,000 | K15: 50,000 | L15: 50,000
A16: 환경관리과 소계 | C16: =SUBTOTAL(103,C17)&"건" -> 1건 | F16: =SUBTOTAL(9,F17) -> 0 | G16: =SUM(G17:G17) -> 14,202 | H16: =SUM(H17:H17) -> 8,521 | I16: 5,681 | J16: 8,521 | K16: 8,521 | L16: 8,521
A17: 환경관리과 | B17: 감천면 범바우길 135 김*배 외 13명 (대상자 내역 별지) | C17: 야생동물 피해예방시설 설치 지원사업 | D17: 민간자본사업보조 | E17: 14,202천원*1식*60% | F17: 0 | G17: =SUM(H17:I17) -> 14,202 | H17: 8,521 | I17: 5,681 | J17: 8,521 | K17: 8,521 | L17: 8,521
A18: 농정과 소계 | C18: =SUBTOTAL(103,C19:C47)&"건" -> 29건 | F18: =SUM(F19:F47) -> 2,890,107 | G18: =SUM(G19:G47) -> 2,552,975 | H18: =SUM(H19:H47) -> 1,325,764 | I18: 1,227,211 | J18: =SUM(J19:J47) -> 1,325,764 | K18: =SUM(K19:K47) -> 1,325,764 | L18: =SUM(L19:L47) -> 1,325,764
A19: 농정과 | B19: 동안동농협가공사업소 | C19: 초등돌봄교실 과일간식 지원사업 | D19: 민간경상사업보조 | E19: 44,916,000원 * 1식 | F19: 27,896 | G19: 44,916 | H19: 44,916 | I19: 0 | J19: 44,916 | K19: 44,916 | L19: 44,916
A20: 농정과 | B20: 은풍면 은풍준시길 64-72 김*열 외 1명 (대상자 내역 별지) | C20: 농산물 유통효율화지원사업 | D20: 민간자본사업보조 | E20: 1,500,000원 * 2식 * 50% | F20: 0 | G20: =SUM(H20:I20) -> 6,000 | H20: 3,000 | I20: 3,000 | J20: 3,000 | K20: 3,000 | L20: 3,000
A21: 농정과 | B21: 용문면 맛질길 39-7 김*진 | C21: 수출경쟁력 제고(수출단지 지게차)지원사업 | D21: 민간자본사업보조 | E21: 30,000,000원 * 1식 * 50% | F21: 0 | G21: 30,000 | H21: 15,000 | I21: 15,000 | J21: 15,000 | K21: 15,000 | L21: 15,000
A22: 농정과 | B22: 국사봉곶감작목반(대표:손*조) 외 28명 (대상자 내역 별지) | C22: 우수 농특산물 포장재 개선지원 | D22: 민간자본사업보조 | E22: 370,500,000원(29식) * 50% | F22: 87,500 | G22: 370,500 | H22: 185,250 | I22: 185,250 | J22: 185,250 | K22: 185,250 | L22: 185,250
A23: 농정과 | B23: 보문면 무근열길 173 김*중 외 7명 (대상자 내역 별지) | C23: 밭작물 폭염(가뭄)피해 예방사업 | D23: 민간자본사업보조 | E23: 5,400천원 * 1식 * 70% | F23: 0 | G23: 5,400 | H23: 3,780 | I23: 1,620 | J23: 3,780 | K23: 3,780 | L23: 3,780
A24: 농정과 | B24: 호명면 종산길 203-25 이*희 | C24: 농약안전보관함 설치 지원사업 | D24: 민간자본사업보조 | E24: 320천원 * 1식 * 50% | F24: 0 | G24: 320 | H24: 160 | I24: 160 | J24: 160 | K24: 160 | L24: 160
A25: 농정과 | B25: 호명면 호명로 246-59 이*희 | C25: 벼 육묘 녹화장(소형) 설치 지원사업 | D25: 민간자본사업보조 | E25: 11,000천원 * 1식 * 50% | F25: 0 | G25: 11,000 | H25: 5,500 | I25: 5,500 | J25: 5,500 | K25: 5,500 | L25: 5,500
A26: 농정과 | B26: 감천면 수한1길 141-117 수한율무재배단지 대표 김*직 외 3명(대상자 내역 별지) | C26: 토종곡물 재배단지 지원 | D26: 민간자본사업보조 | E26: 1,000천원 * 16ha * 70% | F26: 22,000 | G26: 16,000 | H26: 11,200 | I26: 4,800 | J26: 11,200 | K26: 11,200 | L26: 11,200
A27: 농정과 | B27: 감천면 수한1길 141-117 수한율무재배단지 대표 김*직 외 2명(대상자 내역 별지) | C27: 콩,맥류,토종곡물 재배단지 장비 지원 | D27: 민간자본사업보조 | E27: 37,700천원 * 1식 * 70% | F27: 12,000 | G27: 37,700 | H27: 26,390 | I27: 11,310 | J27: 26,390 | K27: 26,390 | L27: 26,390
A28: 농정과 | B28: 호명면 한어길 284 박*화 외 1명 (대상자 내역 별지) | C28: 벼 육묘공장(소형) 설치 지원사업 | D28: 민간자본사업보조 | E28: 42,000천원 * 2개소 * 50% | F28: 0 | G28: 84,000 | H28: 42,000 | I28: 42,000 | J28: 42,000 | K28: 42,000 | L28: 42,000
A29: 농정과 | B29: 예천읍 보문로 185 김*년 외 113명 (대상자 내역 별지) | C29: 공공비축미 매입용 톤백저울 지원사업 | D29: 민간경상사업보조 | E29: 1,000천원 * 114대 * 50% | F29: 0 | G29: 114,000 | H29: 57,000 | I29: 57,000 | J29: 57,000 | K29: 57,000 | L29: 57,000
A30: 농정과 | B30: 예천읍 경서로 2452 윤*갑 외 13명 (대상자 내역 별지) | C30: 공공비축미 매입용 파렛트 지원사업 | D30: 민간자본사업보조 | E30: 50천원 * 1270개 * 50% | F30: 0 | G30: 63,500 | H30: 31,750 | I30: 31,750 | J30: 31,750 | K30: 31,750 | L30: 31,750
A31: 농정과 | B31: 예천읍 대심1길 19 정*교 외 7명 (대상자 내역 별지) | C31: 공공비축미 보관창고 개보수 지원사업 | D31: 민간자본사업보조 | E31: 3,000천원 * 14개소 * 50% | F31: 0 | G31: 42,000 | H31: 21,000 | I31: 21,000 | J31: 21,000 | K31: 21,000 | L31: 21,000
A32: 농정과 | B32: 용문면 금당실길 96 김*덕 외 4명 (대상자 내역 별지) | C32: 2019년 결혼이민자농가 소득증진 지원사업 | D32: 민간자본사업보조 (이전재원) | E32: 10,000천원 * 5식 * 80% | F32: 64,000 | G32: 50,000 | H32: 40,000 | I32: 10,000 | J32: 40,000 | K32: 40,000 | L32: 40,000
A33: 농정과 | B33: 효자면 하사곡길 43 한*수 외 3명 (대상자 내역 별지) | C33: 원예특작농가 농자재 지원 (과수전동가위, 보행형제초기) | D33: 민간자본사업보조 | E33: 8,800천원 * 50% | F33: 0 | G33: 8,800 | H33: 4,400 | I33: 4,400 | J33: 4,400 | K33: 4,400 | L33: 4,400
A34: 농정과 | B34: 효자면 무장길 84 이*인 외 2명 (대상자 내역 별지) | C34: 과수생력화장비 지원사업 (승용예초기, 다목적리프트기) | D34: 민간자본사업보조 | E34: 3대 * 9,000천원 * 50% | F34: 0 | G34: 27,000 | H34: 13,500 | I34: 13,500 | J34: 13,500 | K34: 13,500 | L34: 13,500
A35: 농정과 | B35: 효자면 은풍로 1065 박*철 외 5명 (대상자 내역 별지) | C35: 과실 생산비 절감 및 품질제고 지원사업 (사과적화제) | D35: 민간자본사업보조 | E35: 2,184천원 * 50% | F35: 0 | G35: 2,184 | H35: 1,092 | I35: 1,092 | J35: 1,092 | K35: 1,092 | L35: 1,092
A36: 농정과 | B36: 지보면 매창길 100 안*철 외 1명 (대상자 내역 별지) | C36: 화훼생산시설 경쟁력제고 지원사업 | D36: 민간자본사업보조 | E36: 30,000천원 * 50% | F36: 0 | G36: 30,000 | H36: 15,000 | I36: 15,000 | J36: 15,000 | K36: 15,000 | L36: 15,000
A37: 농정과 | B37: 감천면 미석1길 78 신*수 | C37: FTA 대응 특화작목 경쟁력 제고 (자두선별기) | D37: 민간자본사업보조 | E37: 1대 * 5,000천원 * 50% | F37: 0 | G37: 5,000 | H37: 2,500 | I37: 2,500 | J37: 2,500 | K37: 2,500 | L37: 2,500
A38: 농정과 | B38: 능금농협외 1개소 (대상자 내역 별지) | C38: 과실장기저장제 지원 (산지유통센터) | D38: 민간자본사업보조 | E38: 40,145천원 * 50% | F38: 0 | G38: 40,145 | H38: 20,071 | I38: 20,074 | J38: 20,071 | K38: 20,071 | L38: 20,071
A39: 농정과 | B39: 예천읍 용문경천로 1848-1 강*국 외 76명 (대상자 내역 별지) | C39: 원예산업육성지원사업 | D39: 민간자본사업보조 | E39: 465,610천원 * 1식 * 50% | F39: 904,180 | G39: 465,610 | H39: 232,805 | I39: 232,805 | J39: 232,805 | K39: 232,805 | L39: 232,805
A40: 농정과 | B40: 예천읍 용문경천로 1856 김*조 외 32명 (대상자 내역 별지) | C40: 소득작목육성지원사업 | D40: 민간자본사업보조 | E40: 171,900천원 * 1식 * 50% | F40: 951,031 | G40: 171,900 | H40: 85,950 | I40: 85,950 | J40: 85,950 | K40: 85,950 | L40: 85,950
A41: 농정과 | B41: 영농조합법인 연자방아친환경쌀 (대표:정원학) | C41: 친환경쌀 고품질 유통시설 개선지원 | D41: 민간자본사업보조 | E41: 100,000천원 * 1식 * 50% | F41: 0 | G41: 100,000 | H41: 50,000 | I41: 50,000 | J41: 50,000 | K41: 50,000 | L41: 50,000
A42: 농정과 | B42: 보문면 일방길 122 남*자 외 3명 (대상자 내역 별지) | C42: 중소형농업기계 지원 | D42: 민간자본사업보조 | E42: 2,000,000원 * 4대 * 50% | F42: 440,000 | G42: 8,000 | H42: 4,000 | I42: 4,000 | J42: 4,000 | K42: 4,000 | L42: 4,000
A43: 농정과 | B43: 예천읍 시장로 137 최*화 외 259명 (대상자 내역 별지) | C43: 맞춤형농업기계 지원 | D43: 민간자본사업보조 | E43: 2,000,000원 * 260대 * 50% | F43: 0 | G43: 520,000 | H43: 260,000 | I43: 260,000 | J43: 260,000 | K43: 260,000 | L43: 260,000
A44: 농정과 | B44: 예천읍 대심1길 70-20 김*화 외 2명 (대상자 내역 별지) | C44: 인력절감형 승용관리기 지원 | D44: 민간자본사업보조 | E44: 20,000,000원 * 3대 * 50% | F44: 160,000 | G44: 60,000 | H44: 30,000 | I44: 30,000 | J44: 30,000 | K44: 30,000 | L44: 30,000
A45: 농정과 | B45: 예천읍 신리길 25-6 이*홍 외 22명 (대상자 내역 별지) | C45: 곡물건조기 지원(대형) | D45: 민간자본사업보조 | E45: 10,000천원 * 23대 * 50% | F45: 175,000 | G45: 230,000 | H45: 115,000 | I45: 115,000 | J45: 115,000 | K45: 115,000 | L45: 115,000
A46: 농정과 | B46: 호명면 새랄길 43 최*순 | C46: 육묘용 파종기 지원 | D46: 민간자본사업보조 | E46: 3,000천원 * 1대 * 50% | F46: 30,000 | G46: 3,000 | H46: 1,500 | I46: 1,500 | J46: 1,500 | K46: 1,500 | L46: 1,500
A47: 농정과 | B47: 호명면 밭마길 61-7 박*덕 외 1명 (대상자 내역 별지) | C47: 벼 종자소독기 지원 | D47: 민간자본사업보조 | E47: 3,000천원 * 2대 * 50% | F47: 16,500 | G47: 6,000 | H47: 3,000 | I47: 3,000 | J47: 3,000 | K47: 3,000 | L47: 3,000
A48: 산림축산과 소계 | C48: =SUBTOTAL(103,C49:C87)&"건" -> 39건 | F48: =SUBTOTAL(9,F49:F87) -> 1,100,680 | G48: =SUBTOTAL(9,G49:G87) -> 2,292,482 | H48: 1,298,596 | I48: 993,886 | J48: 1,298,596 | K48: 1,298,596 | L48: 1,298,596
A49: 산림축산과 | B49: 예천읍 밤나무골길 엄*대 외 84명 (대상자 내역 별지) | C49: 지역특화 임산물 유통지원 사업 | D49: 민간자본사업보조 | E49: 59,932천원 * 1식 * 50% | F49: 15,000 | G49: 59,932 | H49: 29,966 | I49: 29,966 | J49: 29,966 | K49: 29,966 | L49: 29,966
A50: 산림축산과 | B50: 풍양면 수산못길 218 최*규 외 9명 (대상자 내역 별지) | C50: 모돈 생산성제고장비 지원 | D50: 민간자본사업보조 | E50: 10,000천원 * 11대 * 60% | F50: 54,000 | G50: =H50+I50 -> 110,000 | H50: 66,000 | I50: 44,000 | J50: =H50 -> 66,000 | K50: 66,000 | L50: =J50 -> 66,000
A51: 산림축산과 | B51: 용궁면 경서로 1192-13 최*기 외 4명 (대상자 내역 별지) | C51: 축사화재안전시스템 지원 | D51: 민간자본사업보조 | E51: 4,000천원 * 7동 * 70% | F51: 22,400 | G51: =H51+I51 -> 28,000 | H51: 19,600 | I51: 8,400 | J51: =H51 -> 19,600 | K51: 19,600 | L51: 19,600
A52: 산림축산과 | B52: 감천면 만맛길 130-67 박*운 외 1명 (대상자 내역 별지) | C52: 이유자돈생산성제고장비 지원 | D52: 민간자본사업보조 | E52: 17,000천원 * 3대 * 60% | F52: 61,200 | G52: 51,000 | H52: 30,600 | I52: 20,400 | J52: 30,600 | K52: 30,600 | L52: 30,600
A53: 산림축산과 | B53: 풍양면 수산못길 218 최*규 외 17명 (대상자 내역 별지) | C53: 돼지 액상정액대 지원 | D53: 민간자본사업보조 | E53: 15천원 * 7,100두 * 60% | F53: 63,900 | G53: 106,500 | H53: 63,900 | I53: 42,600 | J53: 63,900 | K53: 63,900 | L53: 63,900
A54: 산림축산과 | B54: 풍양면 수산못길 218 최*규 외 18명 (대상자 내역 별지) | C54: 불량모돈갱신 지원 | D54: 민간자본사업보조 | E54: 600천원 * 350두 * 50% | F54: 87,000 | G54: =H54+I54 -> 210,000 | H54: 105,000 | I54: 105,000 | J54: 105,000 | K54: 105,000 | L54: 105,000
A55: 산림축산과 | B55: 예천읍 원고개길 67 김*국 외 17명 (대상자 내역 별지) | C55: 돼지 사육환경개선 및 생산성향상 지원 | D55: 민간자본사업보조 | E55: 1천원 * 6,000포 * 50% | F55: 30,000 | G55: 60,000 | H55: 30,000 | I55: 30,000 | J55: 30,000 | K55: 30,000 | L55: 30,000
A56: 산림축산과 | B56: 풍양면 삼강로 743-19 홍*기 외 10명 (대상자 내역 별지) | C56: 자동채밀기 지원 | D56: 민간자본사업보조 | E56: 2,000천원 * 11대 * 60% | F56: 13,200 | G56: 22,000 | H56: 13,200 | I56: 8,800 | J56: 13,200 | K56: 13,200 | L56: 13,200
A57: 산림축산과 | B57: 호명면 행복로 215 박*훈 외 4명 (대상자 내역 별지) | C57: 양봉산물 저온저장고 지원 | D57: 민간자본사업보조 | E57: 6,000천원 * 5개소 * 60% | F57: 18,000 | G57: 30,000 | H57: 18,000 | I57: 12,000 | J57: 18,000 | K57: 18,000 | L57: 18,000
A58: 산림축산과 | B58: 예천읍 효자로 74-3 김*수 외 10명 (대상자 내역 별지) | C58: 토종벌 종보전 지원 | D58: 민간자본사업보조 | E58: 500천원 * 48군 * 80% | F58: 4,000 | G58: 24,000 | H58: 19,200 | I58: 4,800 | J58: 19,200 | K58: 19,200 | L58: 19,200
A59: 산림축산과 | B59: 예천읍 효자로 74-3 김*수 외 7명 (대상자 내역 별지) | C59: 토종벌 벌통 지원 | D59: 민간자본사업보조 | E59: 80천원 * 40개 * 60% | F59: 480 | G59: 3,200 | H59: 1,920 | I59: 1,280 | J59: 1,920 | K59: 1,920 | L59: 1,920
A60: 산림축산과 | B60: 용문면 우망골길 102-4 심*보 외 3명 (대상자 내역 별지) | C60: 한우 수정란 이식 지원 | D60: 민간자본사업보조 | E60: 400천원 * 40두 * 88.75% | F60: 7,100 | G60: 16,000 | H60: 14,200 | I60: 1,800 | J60: 14,200 | K60: 14,200 | L60: 14,200
A61: 산림축산과 | B61: 예천읍 대심로 87 박*서 외 32명 (대상자 내역 별지) | C61: 한우 강철브러시(소 등끌개) 지원 | D61: 민간자본사업보조 | E61: 250천원 * 70대 * 60% | F61: 0 | G61: 17,500 | H61: 10,500 | I61: 7,000 | J61: 10,500 | K61: 10,500 | L61: 10,500
A62: 산림축산과 | B62: 예천읍 갈구2길 160-9 김*교 외 23명 (대상자 내역 별지) | C62: 한우 사료자동급이기 지원 | D62: 민간자본사업보조 | E62: 13,000천원 * 26대 * 60% | F62: 62,400 | G62: 338,000 | H62: 202,800 | I62: 135,200 | J62: 202,800 | K62: 202,800 | L62: 202,800
A63: 산림축산과 | B63: 예천읍 시장로 115 김*익 외 32명 (대상자 내역 별지) | C63: 한우 액상초유 지원 | D63: 민간자본사업보조 | E63: 16.5천원 * 300개 * 60% | F63: 0 | G63: 4,950 | H63: 2,970 | I63: 1,980 | J63: 2,970 | K63: 2,970 | L63: 2,970
A64: 산림축산과 | B64: 예천읍 고평길 84 권*섭 외 47명 (대상자 내역 별지) | C64: 축사환기시설(송풍기) 지원 | D64: 민간자본사업보조 | E64: 300천원 * 220대 * 60% | F64: 270,000 | G64: 66,000 | H64: 39,600 | I64: 26,400 | J64: 39,600 | K64: 39,600 | L64: 39,600
A65: 산림축산과 | B65: 예천읍 고평길 84 권*섭 외 169명 (대상자 내역 별지) | C65: 미네랄블럭 지원 | D65: 민간자본사업보조 | E65: 10천원 * 1,800개 * 60% | F65: 24,300 | G65: 18,000 | H65: 10,800 | I65: 7,200 | J65: 10,800 | K65: 10,800 | L65: 10,800
A66: 산림축산과 | B66: 유천면 양궁로 14 윤*식 외 9명 (대상자 내역 별지) | C66: 축사관리용 CCTV 지원 | D66: 민간자본사업보조 | E66: 2,000천원 * 10대 * 60% | F66: 22,800 | G66: 20,000 | H66: 12,000 | I66: 8,000 | J66: 12,000 | K66: 12,000 | L66: 12,000
A67: 산림축산과 | B67: 용궁면 덕계1길 104-8 도*은 외 4명 (대상자 내역 별지) | C67: 안개 분무시설 지원 | D67: 민간자본사업보조 | E67: 16,000천원 * 5개소 * 60% | F67: 0 | G67: 80,000 | H67: 48,000 | I67: 32,000 | J67: 48,000 | K67: 48,000 | L67: 48,000
A68: 산림축산과 | B68: 호명면 내신1길 147 이*희 외 8명 (대상자 내역 별지) | C68: 축사 단열처리 지원 | D68: 민간자본사업보조 | E68: 10,000천원 * 9개소 * 60% | F68: 0 | G68: 90,000 | H68: 54,000 | I68: 36,000 | J68: 54,000 | K68: 54,000 | L68: 54,000
A69: 산림축산과 | B69: 용궁면 용개로 574-99 채*준 (대상자 내역 별지) | C69: 쿨링패드 및 스프링클러 지원 | D69: 민간자본사업보조 | E69: 10,000천원 * 1개소 * 60% | F69: 0 | G69: 10,000 | H69: 6,000 | I69: 4,000 | J69: 6,000 | K69: 6,000 | L69: 6,000
A70: 산림축산과 | B70: 지보면 수월2길 187 최*귀 외 1명 (대상자 내역 별지) | C70: 축사 전기관리시설(발전기) 지원 | D70: 민간자본사업보조 | E70: 15,000천원 * 2개소 * 50% | F70: 0 | G70: 30,000 | H70: 15,000 | I70: 15,000 | J70: 15,000 | K70: 15,000 | L70: 15,000
A71: 산림축산과 | B71: 풍양면 흔전길 100-57 노* | C71: 양계 자동급수장지 지원 | D71: 민간자본사업보조 | E71: 7,000천원 * 1세트 * 60% | F71: 0 | G71: 7,000 | H71: 4,200 | I71: 2,800 | J71: 4,200 | K71: 4,200 | L71: 4,200
A72: 산림축산과 | B72: 지보면 지보로 180-1 농업회사법인 주식회사 그린포인트 강*태 | C72: 계란난좌 지원 | D72: 민간자본사업보조 | E72: 80원 * 10,000장 * 60% | F72: 1,920 | G72: 800 | H72: 480 | I72: 320 | J72: 480 | K72: 480 | L72: 480
A73: 산림축산과 | B73: 용궁면 용개로 574-99 채*준 외 13명 (대상자 내역 별지) | C73: 육계사 깔짚 지원 | D73: 민간자본사업보조 | E73: 5천원 * 8,800포 * 60% | F73: 25,500 | G73: 44,000 | H73: 26,400 | I73: 17,600 | J73: 26,400 | K73: 26,400 | L73: 26,400
A74: 산림축산과 | B74: 예천읍 효자로 50 김*기 외 5명 (대상자 내역 별지) | C74: 염소 자동급수기 지원 | D74: 민간자본사업보조 | E74: 250천원 * 10대 * 60% | F74: 4,500 | G74: 2,500 | H74: 1,500 | I74: 1,000 | J74: 1,500 | K74: 1,500 | L74: 1,500
A75: 산림축산과 | B75: 풍양면 고천길 203-10 최*택 외 4명 (대상자 내역 별지) | C75: 염소 사료급이기 지원 | D75: 민간자본사업보조 | E75: 200천원 * 11대 * 60% | F75: 5,280 | G75: 2,200 | H75: 1,320 | I75: 880 | J75: 1,320 | K75: 1,320 | L75: 1,320
A76: 산림축산과 | B76: 지보면 어신3길 15-36 윤*근 외 8명 (대상자 내역 별지) | C76: 축산농가 환경개선장비(스키드로더) 지원 | D76: 민간자본사업보조 | E76: 30,000천원 * 9대 * 50% | F76: 120,000 | G76: 270,000 | H76: 135,000 | I76: 135,000 | J76: 135,000 | K76: 135,000 | L76: 135,000
A77: 산림축산과 | B77: 감천면 장산1길 88 정*란 외 6명 (대상자 내역 별지) | C77: 조사료 생산장비 지원 | D77: 민간자본사업보조 | E77: 40,000천원 * 6대 * 60% | F77: 120,000 | G77: 240,000 | H77: 144,000 | I77: 96,000 | J77: 144,000 | K77: 144,000 | L77: 144,000
A78: 산림축산과 | B78: 예천읍 대심로 87 박*서 외 158명 (대상자 내역 별지) | C78: 곤포 사일리지 제조 비닐랩 지원 | D78: 민간자본사업보조 | E78: 100천원 * 1,000롤 * 30% | F78: 60,000 | G78: 100,000 | H78: 30,000 | I78: 70,000 | J78: 30,000 | K78: 30,000 | L78: 30,000
A79: 산림축산과 | B79: 용문면 하학길 44 김*동 외 5명 (대상자 내역 별지) | C79: 내수면 양식장 기자재 지원 | D79: 민간자본사업보조 | E79: 1,000천원 * 11대 * 70% | F79: 7,700 | G79: 11,000 | H79: 7,700 | I79: 3,300 | J79: 7,700 | K79: 7,700 | L79: 7,700
A80: 산림축산과 | B80: 예천군 호명면 양지로 55 성*진 외 6명 (대상자 내역 별지) | C80: 축산분야 ICT융복합확산사업 (IoT 기반축우관리시스템) | D80: 민간자본사업보조 | E80: 300천원 * 249두 * 80% | F80: 0 | G80: 74,700 | H80: 59,760 | I80: 14,940 | J80: 59,760 | K80: 59,760 | L80: 59,760
A81: 산림축산과 | B81: 효자면 도효자로 1550 예천양봉협회 영농조합법인 엄*일 | C81: 양봉협회 자동탈봉기 지원사업 | D81: 민간자본사업보조 | E81: 1,000천원 * 30대 * 50% | F81: 0 | G81: 30,000 | H81: 15,000 | I81: 15,000 | J81: 15,000 | K81: 15,000 | L81: 15,000
A82: 산림축산과 | B82: 감천면 포리 585 박 *환 외 4 (대상자내역별지) | C82: 가금농가 CCTV 설치지원 | D82: 민간자본사업보조 | E82: 5,000천원 * 5개소 * 60%* | F82: 0 | G82: 25,000 | H82: 15,000 | I82: 10,000 | J82: 15,000 | K82: 15,000 | L82: 15,000
A83: 산림축산과 | B83: 용궁면 덕계리 321 도*환 외 2 (대상자 내역 별지) | C83: 가금농가 방역시설 설치지원 | D83: 민간자본사업보조 | E83: 23,000천원 * 1식 * 60% | F83: 0 | G83: 23,000 | H83: 13,800 | I83: 9,200 | J83: 13,800 | K83: 13,800 | L83: 13,800
A84: 산림축산과 | B84: 예천읍 용산길 353-20 ㈜풍년축산 외 21명 (대상자내역별지) | C84: 음수살포용 친환경 악취저감제 | D84: 민간자본사업보조 | E84: 20천원 * 1,000포 * 60% | F84: 0 | G84: 20,000 | H84: 12,000 | I84: 8,000 | J84: 12,000 | K84: 12,000 | L84: 12,000
A85: 산림축산과 | B85: 용문면 선동길 134-11 김*철 외 5명 (대상자내역별지) | C85: 축산분뇨처리용 톱밥지원사업 | D85: 민간자본사업보조 | E85: 3천원 * 600포 * 50% | F85: 0 | G85: 1,800 | H85: 900 | I85: 900 | J85: 900 | K85: 900 | L85: 900
A86: 산림축산과 | B86: 지보면 외평길 64 장*수 외 4명 (대상자내역별지) | C86: 퇴비사 신축 지원 | D86: 민간자본사업보조 | E86: 9,000천원 * 100㎡ * 5개소 * 40% | F86: 0 | G86: 45,000 | H86: 18,000 | I86: 27,000 | J86: 18,000 | K86: 18,000 | L86: 18,000
A87: 산림축산과 | B87: 예천읍 충효로 김*동 외 2명 (대상자 내역 별지) | C87: 유우군 검정사업 | D87: 민간자본사업보조 | E87: 2천원 * 200두 * 70% | F87: 0 | G87: 400 | H87: 280 | I87: 120 | J87: 280 | K87: 280 | L87: 280
A88: 건축과 소계 | C88: =SUBTOTAL(103,C89:C100)&"건" -> 1건 | F88: =SUBTOTAL(9,F89:F100) -> 0 | G88: 46,800 | H88: 46,800 | I88: 0 | J88: 46,800 | K88: 46,800 | L88: 46,800
A89: 건축과 | B89: 예천읍 상시당길 25-4, 배*이 외 11명 (대상자 내역 별지) | C89: 농촌빈집정비지원사업 | D89: 민간자본사업보조 | E89: 46,800천원 * 1식 | F89: 0 | G89: =SUM(H89:I89) -> 46,800 | H89: 46,800 | I89: 0 | J89: =G89 -> 46,800 | K89: =H89 -> 46,800 | L89: 46,800

Sheet 대상자별지내역
A1: 2019년도 제4회 예천군 보조금심의위원회 대상자내역 별지 조서
M2: (단위 : 천원)
A3: 부서명 | B3: 보 조 사 업 자 | E3: 보 조 사 업 명 | F3: 과목명 | G3: 사 업 내 용 | H3: 2018년 지원액 | I3: 계 | J3: 보조금 | K3: 자부담 | L3: 1차(해당부서) | M3: 2차(예산부서) | N3: 3차(위원회)
B4: 주소 | D4: 성명
A5: 소계 | E5: =SUBTOTAL(103,E6:E23) -> 18 | H5: =SUBTOTAL(9,H6:H23) -> 3,000 | I5: =SUBTOTAL(9,I6:I23) -> 9,779 | J5: =SUBTOTAL(9,J6:J23) -> 307,500 | K5: =SUBTOTAL(9,K6:K23) -> 2,279 | L5: 307,500 | M5: 307,500 | N5: 307,500
A6: 주민복지실 | B6: 용문면 선동길 443 | C6: 선2리 노인회 | D6: 선2리 노인회 | E6: 경로당 신축 | F6: 민간자본사업보조(자체재원) | G6: 경로당 신축 : 100,000(1개소) | H6: 0 | J6: 100,000 | K6: 0 | L6: 100,000 | M6: 100,000 | N6: 100,000
A7: 주민복지실 | B7: 은풍면 은산리 39-1 | C7: 은산1리 서사 노인회 | D7: 은산1리 서사 노인회 | E7: 경로당 신축 | F7: 민간자본사업보조(자체재원) | G7: 경로당 신축 : 100,000(1개소) | H7: 0 | J7: 100,000 | K7: 0 | L7: 100,000 | M7: 100,000 | N7: 100,000
A8: 주민복지실 | B8: 지보면 암천리 553-1 | C8: 암천 갈포 노인회 | D8: 암천 갈포 노인회 | E8: 경로당 신축 | F8: 민간자본사업보조(자체재원) | G8: 경로당 신축 : 100,000(1개소) | H8: 0 | J8: 100,000 | K8: 0 | L8: 100,000 | M8: 100,000 | N8: 100,000
A9: 주민복지실 | B9: 용문면 금당실길 54 | C9: 군립용문어린이집 | D9: 군립용문어린이집 | E9: 어린이집환경개선비 지원사업 | F9: 사회복지사업보조 | G9: 화장실 개보수 및 LED등 교체 | H9: 0 | I9: 500 | J9: 500 | K9: 0 | L9: 500 | M9: 500 | N9: 500
A10: 주민복지실 | B10: 예천읍 봉덕로 52 | C10: 군립대심주공어린이집 | D10: 군립대심주공어린이집 | E10: 어린이집환경개선비 지원사업 | F10: 사회복지사업보조 | G10: 보육실 LED등 교체 | H10: 0 | I10: 500 | J10: 500 | K10: 0 | L10: 500 | M10: 500 | N10: 500
A11: 주민복지실 | B11: 예천읍 구남골길 4 | C11: 아롱다롱어린이집 | D11: 아롱다롱어린이집 | E11: 어린이집환경개선비 지원사업 | F11: 사회복지사업보조 | G11: 보육실 도배 | H11: 500 | I11: 1,000 | J11: 500 | K11: 500 | L11: 500 | M11: 500 | N11: 500
A12: 주민복지실 | B12: 예천읍 대심3길 47 | C12: 자연어린이집 | D12: 자연어린이집 | E12: 어린이집환경개선비 지원사업 | F12: 사회복지사업보조 | G12: 도배 및 현관문,계단 보수 | H12: 500 | I12: 800 | J12: 500 | K12: 300 | L12: 500 | M12: 500 | N12: 500
A13: 주민복지실 | B13: 예천읍 충효로 273-1 | C13: 도담어린이집 | D13: 도담어린이집 | E13: 어린이집환경개선비 지원사업 | F13: 사회복지사업보조 | G13: 도배 및 공기청정기 설치 | H13: 500 | I13: 1,000 | J13: 500 | K13: 500 | L13: 500 | M13: 500 | N13: 500
A14: 주민복지실 | B14: 예천읍 충효로 209-28 | C14: 성심어린이집 | D14: 성심어린이집 | E14: 어린이집환경개선비 지원사업 | F14: 사회복지사업보조 | G14: 공기청정기 설치 | H14: 0 | I14: 1,360 | J14: 500 | K14: 860 | L14: 500 | M14: 500 | N14: 500
A15: 주민복지실 | B15: 호명면 검무로 17, 우방아이유쉘1차아파트 관리동 | C15: 우방어린이집 | D15: 우방어린이집 | E15: 어린이집환경개선비 지원사업 | F15: 사회복지사업보조 | G15: 조리실 방충망 교체 및 지진대비 물품 구입 | H15: 500 | I15: 500 | J15: 500 | K15: 0 | L15: 500 | M15: 500 | N15: 500
A16: 주민복지실 | B16: 호명면 새움3로7, 도청아이파크아파트 관리동 | C16: 아이파크어린이집 | D16: 아이파크어린이집 | E16: 어린이집환경개선비 지원사업 | F16: 사회복지사업보조 | G16: 영아용차량 안전벨트 설치 및 방충망 교체 | H16: 500 | I16: 500 | J16: 500 | K16: 0 | L16: 500 | M16: 500 | N16: 500
A17: 주민복지실 | B17: 호명면 행복로 229, 우방센트럴510동103호 | C17: 어린이나라어린이집 | D17: 어린이나라어린이집 | E17: 어린이집환경개선비 지원사업 | F17: 사회복지사업보조 | G17: 유희실 안전매트 시공 | H17: 0 | I17: 549 | J17: 500 | K17: 49 | L17: 500 | M17: 500 | N17: 500
A18: 주민복지실 | B18: 호명면 양지로 14, 호반베르디움2차아파트 216동101호 | C18: 천사어린이집 | D18: 천사어린이집 | E18: 어린이집환경개선비 지원사업 | F18: 사회복지사업보조 | G18: 보육실 문 교체 | H18: 0 | I18: 500 | J18: 500 | K18: 0 | L18: 500 | M18: 500 | N18: 500
A19: 주민복지실 | B19: 호명면 검무로 27, 우방센텀아파트 310동104호 | C19: 하나몬테소리어린이집 | D19: 하나몬테소리어린이집 | E19: 어린이집환경개선비 지원사업 | F19: 사회복지사업보조 | G19: 보육실 문 타공 | H19: 0 | I19: 500 | J19: 500 | K19: 0 | L19: 500 | M19: 500 | N19: 500
A20: 주민복지실 | B20: 호명면 검무로 27, 우방센텀아파트 310동102호 | C20: 새싹어린이집 | D20: 새싹어린이집 | E20: 어린이집환경개선비 지원사업 | F20: 사회복지사업보조 | G20: 화장실 개보수 | H20: 0 | I20: 570 | J20: 500 | K20: 70 | L20: 500 | M20: 500 | N20: 500
A21: 주민복지실 | B21: 호명면 행복로 230, 우방아이유쉘2차 관리동 | C21: 고운어린이집 | D21: 고운어린이집 | E21: 어린이집환경개선비 지원사업 | F21: 사회복지사업보조 | G21: 공기청정기 교체 및 안전용품 구입 | H21: 500 | I21: 500 | J21: 500 | K21: 0 | L21: 500 | M21: 500 | N21: 500
A22: 주민복지실 | B22: 호명면 양지로 14, 호반베르디움 209동 103호 | C22: 꿈나래어린이집 | D22: 꿈나래어린이집 | E22: 어린이집환경개선비 지원사업 | F22: 사회복지사업보조 | G22: 공기청정기 설치 및 안전용품 구입 | H22: 0 | I22: 500 | J22: 500 | K22: 0 | L22: 500 | M22: 500 | N22: 500
A23: 주민복지실 | B23: 호명면 행복로 215, 호반베르디움1차아파트 102동101호 | C23: 꿈빛어린이집 | D23: 꿈빛어린이집 | E23: 어린이집환경개선비 지원사업 | F23: 사회복지사업보조 | G23: 보육실 안전매트 설치 및 공기청정기 렌탈 | H23: 0 | I23: 500 | J23: 500 | K23: 0 | L23: 500 | M23: 500 | N23: 500
A24: 소계 | E24: =SUBTOTAL(103,E25:E38) -> 14 | H24: =SUBTOTAL(9,H25:H28) -> 0 | I24: =SUM(I25:I30) -> 14,202 | J24: 8,521 | K24: 5,681 | L24: 8,521 | M24: 8,521 | N24: 8,521
A25: 환경관리과 | B25: 감천면 범바우길 135 | C25: =REPLACE(D25,2,1,"O") -> 김O배 | D25: 김성배 | E25: 야생동물 피해예방시설 설치 지원사업 | F25: 민간자본사업보조 | G25: 300천원 * 1식 * 60% | I25: 300 | J25: 180 | K25: 120 | L25: 180 | M25: 180 | N25: 180
A26: 환경관리과 | B26: 감천면 충효로 1888-11 | C26: =REPLACE(D26,2,1,"O") -> 전O표 | D26: 전성표 | E26: 야생동물 피해예방시설 설치 지원사업 | F26: 민간자본사업보조 | G26: 1,300천원 * 1식 * 60% | I26: 1,300 | J26: 780 | K26: 520 | L26: 780 | M26: 780 | N26: 780
A27: 환경관리과 | B27: 감천면 덕율 만맛길 43-8 | C27: 김O하 | D27: 김동하 | E27: 야생동물 피해예방시설 설치 지원사업 | F27: 민간자본사업보조 | G27: 102천원 * 1식 * 60% | I27: 102 | J27: 61 | K27: 41 | L27: 61 | M27: 61 | N27: 61
A28: 환경관리과 | B28: 호명면 상간산길 29 | C28: 권O연 | D28: 권기연 | E28: 야생동물 피해예방시설 설치 지원사업 | F28: 민간자본사업보조 | G28: 4,050천원 * 1식 * 60% | I28: 4,050 | J28: 2,430 | K28: 1,620 | L28: 2,430 | M28: 2,430 | N28: 2,430
A29: 환경관리과 | B29: 호명면 백송리 78 | C29: 이O교 | D29: 이환교 | E29: 야생동물 피해예방시설 설치 지원사업 | F29: 민간자본사업보조 | G29: 3,450천원 * 1식 * 60% | I29: 3,450 | J29: 2,070 | K29: 1,380 | L29: 2,070 | M29: 2,070 | N29: 2,070
A30: 환경관리과 | B30: 지보면 소화1길 122-7 | C30: 박O만 | D30: 박재만 | E30: 야생동물 피해예방시설 설치 지원사업 | F30: 민간자본사업보조 | G30: 5,000천원 * 1식 * 60% | I30: 5,000 | J30: 3,000 | K30: 2,000 | L30: 3,000 | M30: 3,000 | N30: 3,000
A31: 예비자 | B31: 개포면 경서로 1398-16 | C31: 고O림 | D31: 고재림 | E31: 야생동물 피해예방시설 설치 지원사업 | F31: 민간자본사업보조 | G31: 3,000천원 * 1식 * 60% | H31: 예비후보자 | I31: 3,000 | J31: 1,800 | K31: 1,200 | L31: 1,800 | M31: 1,800 | N31: 1,800
A32: 예비자 | B32: 용문면 하학리 398-1 | C32: 이O찬 | D32: 이영찬 | E32: 야생동물 피해예방시설 설치 지원사업 | F32: 민간자본사업보조 | G32: 1,696천원 * 1식 * 60% | H32: 예비후보자 | I32: 1,696 | J32: 1,018 | K32: 678 | L32: 1,018 | M32: 1,018 | N32: 1,018
A33: 예비자 | B33: 용문면 선동길 438 | C33: 이O한 | D33: 이익한 | E33: 야생동물 피해예방시설 설치 지원사업 | F33: 민간자본사업보조 | G33: 3,900천원 * 1식 * 60% | H33: 예비후보자 | I33: 3,900 | J33: 2,340 | K33: 1,560 | L33: 2,340 | M33: 2,340 | N33: 2,340
A34: 예비자 | B34: 용문면 선동길 446 | C34: 정O달 | D34: 정삼달 | E34: 야생동물 피해예방시설 설치 지원사업 | F34: 민간자본사업보조 | G34: 3,900천원 * 1식 * 60% | H34: 예비후보자 | I34: 3,900 | J34: 2,340 | K34: 1,560 | L34: 2,340 | M34: 2,340 | N34: 2,340
A35: 예비자 | B35: 용문면 선동길 443-1 | C35: 정O익 | D35: 정원익 | E35: 야생동물 피해예방시설 설치 지원사업 | F35: 민간자본사업보조 | G35: 3,750천원 * 1식 * 60% | H35: 예비후보자 | I35: 3,750 | J35: 2,250 | K35: 1,500 | L35: 2,250 | M35: 2,250 | N35: 2,250
A36: 예비자 | B36: 부산광역시 해운대구 청사포로 27, 113동 401호 | C36: 우O원 | D36: 우재원 | E36: 야생동물 피해예방시설 설치 지원사업 | F36: 민간자본사업보조 | G36: 5,000천원 * 1식 * 60% | H36: 예비후보자 | I36: 5,000 | J36: 3,000 | K36: 2,000 | L36: 3,000 | M36: 3,000 | N36: 3,000
A37: 예비자 | B37: 효자면 은풍로 910 | C37: 박O규 | D37: 박희규 | E37: 야생동물 피해예방시설 설치 지원사업 | F37: 민간자본사업보조 | G37: 5,000천원 * 1식 * 60% | H37: 예비후보자 | I37: 5,000 | J37: 3,000 | K37: 2,000 | L37: 3,000 | M37: 3,000 | N37: 3,000
A38: 예비자 | B38: 효자면 용소마길 41-3 | C38: 박O규 | D38: 박명규 | E38: 야생동물 피해예방시설 설치 지원사업 | F38: 민간자본사업보조 | G38: 4,650천원 * 1식 * 60% | H38: 예비후보자 | I38: 4,650 | J38: 2,790 | K38: 1,860 | L38: 2,790 | M38: 2,790 | N38: 2,790
A39: 소계 | E39: =SUBTOTAL(103,E40:E648) -> 608 | H39: =SUM(H40:H648) -> 182,000 | I39: =SUM(I40:I648) -> 2,274,739 | J39: =SUM(J40:J648) -> 1,164,188 | K39: 1,110,551 | L39: 1,164,188 | M39: =SUM(M40:M648) -> 1,164,188 | N39: 1,164,188
A40: 농정과 | B40: 은풍면 은풍준시길 64-72 | C40: 김O열 | D40: 김동열 | E40: 유툥효율화지원사업 | F40: 민간자본보조사업 | G40: 3,000천원 * 1식 * 50% | I40: 3,000 | J40: 1,500 | K40: 1,500 | L40: =J40 -> 1,500 | M40: =K40 -> 1,500 | N40: =L40 -> 1,500
A41: 농정과 | B41: 은풍면 은풍준시길 44-10 | C41: 최O만 | D41: 최정만 | E41: 유툥효율화지원사업 | F41: 민간자본보조사업 | G41: 3,000천원 * 1식 * 50% | I41: 3,000 | J41: 1,500 | K41: 1,500 | L41: =J41 -> 1,500 | M41: 1,500 | N41: 1,500
A42: 농정과 | B42: 용문면 용문경천로 526 | C42: 국사봉곶감작목반 (대표: 손*조) | D42: 국사봉곶감작목반 (대표: 손병조) | E42: 우수 농특산물 포장재 개선지원 | F42: 민간자본보조사업 | G42: 1,500원 * 4,000매 * 50% | I42: 6,000 | J42: 3,000 | K42: 3,000 | L42: 3,000 | M42: 3,000 | N42: 3,000
A43: 농정과 | B43: 호명면 내신리 389번지 | C43: 권O박 | D43: 권영박 | E43: 우수 농특산물 포장재 개선지원 | F43: 민간자본보조사업 | G43: 2,000원 * 3,000매 * 50% | I43: 6,000 | J43: 3,000 | K43: 3,000 | L43: 3,000 | M43: 3,000 | N43: 3,000
A44: 농정과 | B44: 용문면 금당실길 51-11 | C44: 금당꿀 (대표: 박*상) | D44: 금당꿀 (대표: 박우상) | E44: 우수 농특산물 포장재 개선지원 | F44: 민간자본보조사업 | G44: 1,250원 * 16,000매 * 50% | I44: 20,000 | J44: 10,000 | K44: 10,000 | L44: 10,000 | M44: 10,000 | N44: 10,000
A45: 농정과 | B45: 호명면 양궁로 813-29 | C45: 김O심 | D45: 김성심 | E45: 우수 농특산물 포장재 개선지원 | F45: 민간자본보조사업 | G45: 10,000원 * 700매 * 50% | I45: 7,000 | J45: 3,500 | K45: 3,500 | L45: 3,500 | M45: 3,500 | N45: 3,500
A46: 농정과 | B46: 효자면 석항명봉로 994 | C46: 김O한 | D46: 김성한 | E46: 우수 농특산물 포장재 개선지원 | F46: 민간자본보조사업 | G46: 1,000원 * 12,000매 * 50% | I46: 12,000 | J46: 6,000 | K46: 6,000 | L46: 6,000 | M46: 6,000 | N46: 6,000
A47: 농정과 | B47: 용문면 금당실길 144 | C47: 김O덕 | D47: 김원덕 | E47: 우수 농특산물 포장재 개선지원 | F47: 민간자본보조사업 | G47: 10kg * 1,000원 * 50% | I47: 3,800 | J47: 1,900 | K47: 1,900 | L47: 1,900 | M47: 1,900 | N47: 1,900
A48: 농정과 | B48: 개포면 종산골길 99 | C48: 김O연 | D48: 김종연 | E48: 우수 농특산물 포장재 개선지원 | F48: 민간자본보조사업 | G48: 1,200원 * 10,000매 * 50% | I48: 12,000 | J48: 6,000 | K48: 6,000 | L48: 6,000 | M48: 6,000 | N48: 6,000
A49: 농정과 | B49: 감천면 관현리 21번지 | C49: 김O창 | D49: 김주창 | E49: 우수 농특산물 포장재 개선지원 | F49: 민간자본보조사업 | G49: 1,000원 * 3,400매 * 50% | I49: 3,400 | J49: 1,700 | K49: 1,700 | L49: 1,700 | M49: 1,700 | N49: 1,700
A50: 농정과 | B50: 예천읍 고평길 68-15 | C50: 김O윤 | D50: 김채윤 | E50: 우수 농특산물 포장재 개선지원 | F50: 민간자본보조사업 | G50: 1,000원 * 3,000매 * 50% | I50: 3,000 | J50: 1,500 | K50: 1,500 | L50: 1,500 | M50: 1,500 | N50: 1,500
A51: 농정과 | B51: 예천읍 충효로 261-8 | C51: 김O문 | D51: 김학문 | E51: 우수 농특산물 포장재 개선지원 | F51: 민간자본보조사업 | G51: 2,500원 * 4,000매 * 50% | I51: 10,000 | J51: 5,000 | K51: 5,000 | L51: 5,000 | M51: 5,000 | N51: 5,000
A52: 농정과 | B52: 감천면 천향리 416 | C52: 김O년 | D52: 김홍년 | E52: 우수 농특산물 포장재 개선지원 | F52: 민간자본보조사업 | G52: 1,175원 * 16,000매 * 50% | I52: 18,800 | J52: 9,400 | K52: 9,400 | L52: 9,400 | M52: 9,400 | N52: 9,400
A53: 농정과 | B53: 개포면 용개로 1031 | C53: 남O하 | D53: 남시하 | E53: 우수 농특산물 포장재 개선지원 | F53: 민간자본보조사업 | G53: 1,500원 * 2,000매 * 50% | I53: 3,000 | J53: 1,500 | K53: 1,500 | L53: 1,500 | M53: 1,500 | N53: 1,500
A54: 농정과 | B54: 개포면 우감2길 47 | C54: 박O희 | D54: 박명희 | E54: 우수 농특산물 포장재 개선지원 | F54: 민간자본보조사업 | G54: 2,800원* 5,000매 * 50% | I54: 14,000 | J54: 7,000 | K54: 7,000 | L54: 7,000 | M54: 7,000 | N54: 7,000
A55: 농정과 | B55: 보문면 미호길 86 | C55: 어O이참기름 (대표: 조인선) | D55: 어무이참기름 (대표: 조인선) | E55: 우수 농특산물 포장재 개선지원 | F55: 민간자본보조사업 | G55: 4,000원 * 4,000매 * 50% | I55: 16,000 | J55: 8,000 | K55: 8,000 | L55: 8,000 | M55: 8,000 | N55: 8,000
A56: 농정과 | B56: 개포면 예지로 1226 | C56: 예O군공선출하회 (대표: 이달호) | D56: 예천군공선출하회 (대표: 이달호) | E56: 우수 농특산물 포장재 개선지원 | F56: 민간자본보조사업 | G56: 1,000원 * 20,000매 * 50% | I56: 20,000 | J56: 10,000 | K56: 10,000 | L56: 10,000 | M56: 10,000 | N56: 10,000
A57: 농정과 | B57: 용문면 제곡리 39-7 | C57: 예O단호박작목반 (대표: 김우진) | D57: 예천단호박작목반 (대표: 김우진) | E57: 우수 농특산물 포장재 개선지원 | F57: 민간자본보조사업 | G57: 1,000원 * 20,000매 * 50% | I57: 20,000 | J57: 10,000 | K57: 10,000 | L57: 10,000 | M57: 10,000 | N57: 10,000
A58: 농정과 | B58: 용문면 유용로 803 | C58: 예O청결고추 (대표: 박군상) | D58: 예천청결고추 (대표: 박군상) | E58: 우수 농특산물 포장재 개선지원 | F58: 민간자본보조사업 | G58: 5,000원 * 10,000매 * 50% | I58: 50,000 | J58: 25,000 | K58: 25,000 | L58: 25,000 | M58: 25,000 | N58: 25,000
A59: 농정과 | B59: 호명면 인포길 60-4 | C59: 우O규 | D59: 우종규 | E59: 우수 농특산물 포장재 개선지원 | F59: 민간자본보조사업 | G59: 1400원 * 3000매 * 50% | I59: 4,200 | J59: 2,100 | K59: 2,100 | L59: 2,100 | M59: 2,100 | N59: 2,100
A60: 농정과 | B60: 예천읍 상설시장1길 24-1 | C60: ㈜O경 이현숙 | D60: ㈜하경 이현숙 | E60: 우수 농특산물 포장재 개선지원 | F60: 민간자본보조사업 | G60: 1,000원 * 10,000매 * 50% | I60: 10,000 | J60: 5,000 | K60: 5,000 | L60: 5,000 | M60: 5,000 | N60: 5,000
A61: 농정과 | B61: 감천면 만맛길 41-41 | C61: 이O선 | D61: 이종선 | E61: 우수 농특산물 포장재 개선지원 | F61: 민간자본보조사업 | G61: 1,100원 * 3,000매 * 50% | I61: 3,300 | J61: 1,650 | K61: 1,650 | L61: 1,650 | M61: 1,650 | N61: 1,650
A62: 농정과 | B62: 보문면 미호길 59 | C62: 장O원 (대표: 김상동) | D62: 장유원 (대표: 김상동) | E62: 우수 농특산물 포장재 개선지원 | F62: 민간자본보조사업 | G62: 8,000원 * 10,000매 * 50% | I62: 8,000 | J62: 4,000 | K62: 4,000 | L62: 4,000 | M62: 4,000 | N62: 4,000
A63: 농정과 | B63: 지보면 지보로 175-23 | C63: 정O욱 | D63: 정동욱 | E63: 우수 농특산물 포장재 개선지원 | F63: 민간자본보조사업 | G63: 4,000원 * 1,250매 * 50% | I63: 5,000 | J63: 2,500 | K63: 2,500 | L63: 2,500 | M63: 2,500 | N63: 2,500
A64: 농정과 | B64: 개포면 송담길 142-24 | C64: 정O례 | D64: 정옥례 | E64: 우수 농특산물 포장재 개선지원 | F64: 민간자본보조사업 | G64: 700원 * 10,000매 * 50% | I64: 7,000 | J64: 3,500 | K64: 3,500 | L64: 3,500 | M64: 3,500 | N64: 3,500
A65: 농정과 | B65: 지보면 지보리길 166-12 | C65: 지O무청작목반 (대표: 김익동) | D65: 지보무청작목반 (대표: 김익동) | E65: 우수 농특산물 포장재 개선지원 | F65: 민간자본보조사업 | G65: 2,000원 * 4,000매 * 50% | I65: 8,000 | J65: 4,000 | K65: 4,000 | L65: 4,000 | M65: 4,000 | N65: 4,000
A66: 농정과 | B66: 용문면 복천길 16-8 | C66: ㈜O한농부 (대표: 김상선) | D66: ㈜착한농부 (대표: 김상선) | E66: 우수 농특산물 포장재 개선지원 | F66: 민간자본보조사업 | G66: 1,600 원 * 10,000 매 * 50% | I66: 16,000 | J66: 8,000 | K66: 8,000 | L66: 8,000 | M66: 8,000 | N66: 8,000
A67: 농정과 | B67: 예천읍 땅골못길 196-23 | C67: 예O청합벌꿀 (대표: 윤여한) | D67: 예천청합벌꿀 (대표: 윤여한) | E67: 우수 농특산물 포장재 개선지원 | F67: 민간자본보조사업 | G67: 2,400원 * 10,000매 * 50% | I67: 24,000 | J67: 12,000 | K67: 12,000 | L67: 12,000 | M67: 12,000 | N67: 12,000
A68: 농정과 | B68: 용궁면 송암길 15 | C68: 초O정 (대표: 한상준) | D68: 초산정 (대표: 한상준) | E68: 우수 농특산물 포장재 개선지원 | F68: 민간자본보조사업 | G68: 2,500원 * 4,000매 * 50% | I68: 10,000 | J68: 5,000 | K68: 5,000 | L68: 5,000 | M68: 5,000 | N68: 5,000
A69: 농정과 | B69: 용궁면 용궁로 148 | C69: (O)회룡포 (대표: 안희철) | D69: (주)회룡포 (대표: 안희철) | E69: 우수 농특산물 포장재 개선지원 | F69: 민간자본보조사업 | G69: 5,000원 * 4,000매 * 50% | I69: 20,000 | J69: 10,000 | K69: 10,000 | L69: 10,000 | M69: 10,000 | N69: 10,000
A70: 농정과 | B70: 용문면 대제리 324-9번지 | C70: ㈜O팜 (대표: 정가영) | D70: ㈜웰팜 (대표: 정가영) | E70: 우수 농특산물 포장재 개선지원 | F70: 민간자본보조사업 | G70: 12,000원 * 2,500매 * 50% | I70: 30,000 | J70: 15,000 | K70: 15,000 | L70: 15,000 | M70: 15,000 | N70: 15,000
A71: 농정과 | B71: 보문면 무근열길 173 | C71: 김O중 | D71: 김일중 | E71: 밭작물 폭염(가뭄)피해 예방사업 | F71: 민간자본사업보조 | G71: 600천원 * 1식 * 70% | H71: 0 | I71: 600 | J71: 420 | K71: 180 | L71: 420 | M71: 420 | N71: 420
A72: 농정과 | B72: 은풍면 은풍준시길 64-3 | C72: 김O현 | D72: 김상현 | E72: 밭작물 폭염(가뭄)피해 예방사업 | F72: 민간자본사업보조 | G72: 600천원 * 1식 * 70% | H72: 0 | I72: 600 | J72: 420 | K72: 180 | L72: 420 | M72: 420 | N72: 420
A73: 농정과 | B73: 은풍면 은산길 65 | C73: 이O하 | D73: 이상하 | E73: 밭작물 폭염(가뭄)피해 예방사업 | F73: 민간자본사업보조 | G73: 600천원 * 1식 * 70% | H73: 0 | I73: 600 | J73: 420 | K73: 180 | L73: 420 | M73: 420 | N73: 420
A74: 농정과 | B74: 은풍면 은풍준시길 28-72 | C74: 장O기 | D74: 장덕기 | E74: 밭작물 폭염(가뭄)피해 예방사업 | F74: 민간자본사업보조 | G74: 600천원 * 1식 * 70% | H74: 0 | I74: 600 | J74: 420 | K74: 180 | L74: 420 | M74: 420 | N74: 420
A75: 농정과 | B75: 효자면 은풍로 1065 | C75: 박O철 | D75: 박승철 | E75: 밭작물 폭염(가뭄)피해 예방사업 | F75: 민간자본사업보조 | G75: 600천원 * 1식 * 70% | H75: 0 | I75: 600 | J75: 420 | K75: 180 | L75: 420 | M75: 420 | N75: 420
A76: 농정과 | B76: 호명면 봉호로 4184-35 | C76: 박O범 | D76: 박현범 | E76: 밭작물 폭염(가뭄)피해 예방사업 | F76: 민간자본사업보조 | G76: 1,200천원 * 1식 * 70% | H76: 0 | I76: 1,200 | J76: 840 | K76: 360 | L76: 840 | M76: 840 | N76: 840
A77: 농정과 | B77: 예천읍 통명길 41-16 | C77: 윤O한 | D77: 윤준한 | E77: 밭작물 폭염(가뭄)피해 예방사업 | F77: 민간자본사업보조 | G77: 600천원 * 1식 * 70% | H77: 0 | I77: 600 | J77: 420 | K77: 180 | L77: 420 | M77: 420 | N77: 420
A78: 농정과 | B78: 지보면 지보리길 202 | C78: 어O호 | D78: 어광호 | E78: 밭작물 폭염(가뭄)피해 예방사업 | F78: 민간자본사업보조 | G78: 600천원 * 1식 * 70% | H78: 0 | I78: 600 | J78: 420 | K78: 180 | L78: 420 | M78: 420 | N78: 420
A79: 농정과 | B79: 감천면 수한1길 141-117 | C79: 김O직(수한율무단지) | D79: 김홍직(수한율무단지) | E79: 토종곡물 재배단지 지원 | F79: 민간자본사업보조 | G79: 1,000천원 * 3ha * 70% | I79: 3,000 | J79: 2,100 | K79: 900 | L79: 2,100 | M79: 2,100 | N79: 2,100
A80: 농정과 | B80: 유천면 수심1길 95 | C80: 김O봉(예천버드내잡곡) | D80: 김상봉(예천버드내잡곡) | E80: 토종곡물 재배단지 지원 | F80: 민간자본사업보조 | G80: 1,000천원 * 7ha * 70% | H80: 10,000 | I80: 7,000 | J80: 4,900 | K80: 2,100 | L80: 4,900 | M80: 4,900 | N80: 4,900
A81: 농정과 | B81: 용궁면 용궁로 137-2 | C81: 윤O덕(용궁무이단지) | D81: 윤경덕(용궁무이단지) | E81: 토종곡물 재배단지 지원 | F81: 민간자본사업보조 | G81: 1,000천원 * 3ha * 70% | H81: 5,000 | I81: 3,000 | J81: 2,100 | K81: 900 | L81: 2,100 | M81: 2,100 | N81: 2,100
A82: 농정과 | B82: 용궁면 경서로 1264 | C82: 안O만(용궁무지단지) | D82: 안승만(용궁무지단지) | E82: 토종곡물 재배단지 지원 | F82: 민간자본사업보조 | G82: 1,000천원 * 3ha * 70% | H82: 3,000 | I82: 3,000 | J82: 2,100 | K82: 900 | L82: 2,100 | M82: 2,100 | N82: 2,100
A83: 농정과 | B83: 감천면 수한1길 141-117 | C83: 김O직(수한율무단지) | D83: 김홍직(수한율무단지) | E83: 콩,맥류,토종곡물 재배단지 장비 지원 | F83: 민간자본사업보조 | G83: 9,800천원 * 1식 * 70% | H83: 4,000 | I83: 9,800 | J83: 6,860 | K83: 2,940 | L83: 6,860 | M83: 6,860 | N83: 6,860
A84: 농정과 | B84: 용궁면 용궁로 137-2 | C84: 윤O덕(용궁무이단지) | D84: 윤경덕(용궁무이단지) | E84: 콩,맥류,토종곡물 재배단지 장비 지원 | F84: 민간자본사업보조 | G84: 9,300천원 * 1식 * 70% | H84: 5,000 | I84: 9,300 | J84: 6,510 | K84: 2,790 | L84: 6,510 | M84: 6,510 | N84: 6,510
A85: 농정과 | B85: 용궁면 경서로 1264 | C85: 안O만(용궁무지단지) | D85: 안승만(용궁무지단지) | E85: 콩,맥류,토종곡물 재배단지 장비 지원 | F85: 민간자본사업보조 | G85: 18,600천원 * 1식 * 70% | H85: 3,000 | I85: 18,600 | J85: 13,020 | K85: 5,580 | L85: 13,020 | M85: 13,020 | N85: 13,020
A86: 농정과 | B86: 호명면 한어길 284 | C86: 박O화 | D86: 박영화 | E86: 벼 육묘공장(소형) 설치 지원사업 | F86: 민간자본사업보조 | G86: 42,000천원 * 1식 * 50% | H86: 0 | I86: 42,000 | J86: 21,000 | K86: 21,000 | L86: 21,000 | M86: 21,000 | N86: 21,000
A87: 농정과 | B87: 풍양면 괴당1길 315-23 | C87: 이O선 | D87: 이학선 | E87: 벼 육묘공장(소형) 설치 지원사업 | F87: 민간자본사업보조 | G87: 42,000천원 * 1식 * 50% | H87: 0 | I87: 42,000 | J87: 21,000 | K87: 21,000 | L87: 21,000 | M87: 21,000 | N87: 21,000
A88: 농정과 | B88: 예천읍 보문로 185 | C88: 김O년 | D88: 김찬년 | E88: 공공비축미 매입용 톤백저울 지원사업 | F88: 민간자본사업보조 | G88: 1,000천원 * 1식 * 50% | I88: 1,000 | J88: 500 | K88: 500 | L88: 500 | M88: 500 | N88: 500
A89: 농정과 | B89: 예천읍 상동길 72 | C89: 권O덕 | D89: 권재덕 | E89: 공공비축미 매입용 톤백저울 지원사업 | F89: 민간자본사업보조 | G89: 1,000천원 * 1식 * 50% | I89: 1,000 | J89: 500 | K89: 500 | L89: 500 | M89: 500 | N89: 500
A90: 농정과 | B90: 예천읍 옥반골길 21 | C90: =REPLACE(D90,2,1,"O") -> 이O득 | D90: 이한득 | E90: 공공비축미 매입용 톤백저울 지원사업 | F90: 민간자본사업보조 | G90: 1,000천원 * 1식 * 50% | I90: 1,000 | J90: 500 | K90: 500 | L90: 500 | M90: 500 | N90: 500
A91: 농정과 | B91: 예천읍 신리길 25-6 | C91: 이O홍 | D91: 이재홍 | E91: 공공비축미 매입용 톤백저울 지원사업 | F91: 민간자본사업보조 | G91: 1,000천원 * 1식 * 50% | I91: 1,000 | J91: 500 | K91: 500 | L91: 500 | M91: 500 | N91: 500
A92: 농정과 | B92: 예천읍 용산길 56-11 | C92: 권O택 | D92: 권운택 | E92: 공공비축미 매입용 톤백저울 지원사업 | F92: 민간자본사업보조 | G92: 1,000천원 * 1식 * 50% | I92: 1,000 | J92: 500 | K92: 500 | L92: 500 | M92: 500 | N92: 500
A93: 농정과 | B93: 용문면 용문경천로 941 | C93: 최O민 | D93: 최종민 | E93: 공공비축미 매입용 톤백저울 지원사업 | F93: 민간자본사업보조 | G93: 1,000천원 * 1식 * 50% | I93: 1,000 | J93: 500 | K93: 500 | L93: 500 | M93: 500 | N93: 500
A94: 농정과 | B94: 용문면 사부령길 258 | C94: 손O원 | D94: 손갑원 | E94: 공공비축미 매입용 톤백저울 지원사업 | F94: 민간자본사업보조 | G94: 1,000천원 * 1식 * 50% | I94: 1,000 | J94: 500 | K94: 500 | L94: 500 | M94: 500 | N94: 500
A95: 농정과 | B95: 용문면 방송길 27-17 | C95: 민O현 | D95: 민병현 | E95: 공공비축미 매입용 톤백저울 지원사업 | F95: 민간자본사업보조 | G95: 1,000천원 * 1식 * 50% | I95: 1,000 | J95: 500 | K95: 500 | L95: 500 | M95: 500 | N95: 500
A96: 농정과 | B96: 용문면 유전길 103 | C96: 이O구 | D96: 이재구 | E96: 공공비축미 매입용 톤백저울 지원사업 | F96: 민간자본사업보조 | G96: 1,000천원 * 1식 * 50% | I96: 1,000 | J96: 500 | K96: 500 | L96: 500 | M96: 500 | N96: 500
A97: 농정과 | B97: 용문면 큰맛질길 50-62 | C97: 권O특 | D97: 권영특 | E97: 공공비축미 매입용 톤백저울 지원사업 | F97: 민간자본사업보조 | G97: 1,000천원 * 1식 * 50% | I97: 1,000 | J97: 500 | K97: 500 | L97: 500 | M97: 500 | N97: 500
A98: 농정과 | B98: 용문면 방두들길 48 | C98: 박O완 | D98: 박노완 | E98: 공공비축미 매입용 톤백저울 지원사업 | F98: 민간자본사업보조 | G98: 1,000천원 * 1식 * 50% | I98: 1,000 | J98: 500 | K98: 500 | L98: 500 | M98: 500 | N98: 500
A99: 농정과 | B99: 용문면 방두들길 52-1 | C99: 최O길 | D99: 최상길 | E99: 공공비축미 매입용 톤백저울 지원사업 | F99: 민간자본사업보조 | G99: 1,000천원 * 1식 * 50% | I99: 1,000 | J99: 500 | K99: 500 | L99: 500 | M99: 500 | N99: 500
A100: 농정과 | B100: 용문면 복천길 42-30 | C100: 김O하 | D100: 김석하 | E100: 공공비축미 매입용 톤백저울 지원사업 | F100: 민간자본사업보조 | G100: 1,000천원 * 1식 * 50% | I100: 1,000 | J100: 500 | K100: 500 | L100: 500 | M100: 500 | N100: 500
A101: 농정과 | B101: 용문면 노사길 144 | C101: 임O섭 | D101: 임형섭 | E101: 공공비축미 매입용 톤백저울 지원사업 | F101: 민간자본사업보조 | G101: 1,000천원 * 1식 * 50% | I101: 1,000 | J101: 500 | K101: 500 | L101: 500 | M101: 500 | N101: 500
A102: 농정과 | B102: 용문면 직동길 140 | C102: 임O철 | D102: 임병철 | E102: 공공비축미 매입용 톤백저울 지원사업 | F102: 민간자본사업보조 | G102: 1,000천원 * 1식 * 50% | I102: 1,000 | J102: 500 | K102: 500 | L102: 500 | M102: 500 | N102: 500
A103: 농정과 | B103: 예천읍 대심1길 19 | C103: 정O교 | D103: 정락교 | E103: 공공비축미 매입용 톤백저울 지원사업 | F103: 민간자본사업보조 | G103: 1,000천원 * 1식 * 50% | I103: 1,000 | J103: 500 | K103: 500 | L103: 500 | M103: 500 | N103: 500
A104: 농정과 | B104: 용문면 개방길 32 | C104: 김O주 | D104: 김용주 | E104: 공공비축미 매입용 톤백저울 지원사업 | F104: 민간자본사업보조 | G104: 1,000천원 * 1식 * 50% | I104: 1,000 | J104: 500 | K104: 500 | L104: 500 | M104: 500 | N104: 500
A105: 농정과 | B105: 은풍면 과산골길 30 | C105: 채O덕 | D105: 채용덕 | E105: 공공비축미 매입용 톤백저울 지원사업 | F105: 민간자본사업보조 | G105: 1,000천원 * 1식 * 50% | I105: 1,000 | J105: 500 | K105: 500 | L105: 500 | M105: 500 | N105: 500
A106: 농정과 | B106: 은풍면 어림성길 120-7 | C106: 김O제 | D106: 김국제 | E106: 공공비축미 매입용 톤백저울 지원사업 | F106: 민간자본사업보조 | G106: 1,000천원 * 1식 * 50% | I106: 1,000 | J106: 500 | K106: 500 | L106: 500 | M106: 500 | N106: 500
A107: 농정과 | B107: 은풍면 부용봉길 237 | C107: 전O하 | D107: 전종하 | E107: 공공비축미 매입용 톤백저울 지원사업 | F107: 민간자본사업보조 | G107: 1,000천원 * 1식 * 50% | I107: 1,000 | J107: 500 | K107: 500 | L107: 500 | M107: 500 | N107: 500
A108: 농정과 | B108: 감천면 도평길 60 | C108: 배O희 | D108: 배문희 | E108: 공공비축미 매입용 톤백저울 지원사업 | F108: 민간자본사업보조 | G108: 1,000천원 * 1식 * 50% | I108: 1,000 | J108: 500 | K108: 500 | L108: 500 | M108: 500 | N108: 500
A109: 농정과 | B109: 감천면 돈답길 | C109: 김O성 | D109: 김두성 | E109: 공공비축미 매입용 톤백저울 지원사업 | F109: 민간자본사업보조 | G109: 1,000천원 * 1식 * 50% | I109: 1,000 | J109: 500 | K109: 500 | L109: 500 | M109: 500 | N109: 500
A110: 농정과 | B110: 감천면 장산마촌길 99-26 | C110: 김O현 | D110: 김구현 | E110: 공공비축미 매입용 톤백저울 지원사업 | F110: 민간자본사업보조 | G110: 1,000천원 * 1식 * 50% | I110: 1,000 | J110: 500 | K110: 500 | L110: 500 | M110: 500 | N110: 500
A111: 농정과 | B111: 감천면 오향길 211-3 | C111: 이O진 | D111: 이창진 | E111: 공공비축미 매입용 톤백저울 지원사업 | F111: 민간자본사업보조 | G111: 1,000천원 * 1식 * 50% | I111: 1,000 | J111: 500 | K111: 500 | L111: 500 | M111: 500 | N111: 500
A112: 농정과 | B112: 감천면 자봉길 46-1 | C112: 진O식 | D112: 진근식 | E112: 공공비축미 매입용 톤백저울 지원사업 | F112: 민간자본사업보조 | G112: 1,000천원 * 1식 * 50% | I112: 1,000 | J112: 500 | K112: 500 | L112: 500 | M112: 500 | N112: 500
A113: 농정과 | B113: 감천면 수한길 4-5 | C113: 안O기 | D113: 안홍기 | E113: 공공비축미 매입용 톤백저울 지원사업 | F113: 민간자본사업보조 | G113: 1,000천원 * 1식 * 50% | I113: 1,000 | J113: 500 | K113: 500 | L113: 500 | M113: 500 | N113: 500
A114: 농정과 | B114: 감천면 농바우길 34-5 | C114: 김O년 | D114: 김승년 | E114: 공공비축미 매입용 톤백저울 지원사업 | F114: 민간자본사업보조 | G114: 1,000천원 * 1식 * 50% | I114: 1,000 | J114: 500 | K114: 500 | L114: 500 | M114: 500 | N114: 500
A115: 농정과 | B115: 감천면 장산1길 32 | C115: 김O동 | D115: 김주동 | E115: 공공비축미 매입용 톤백저울 지원사업 | F115: 민간자본사업보조 | G115: 1,000천원 * 1식 * 50% | I115: 1,000 | J115: 500 | K115: 500 | L115: 500 | M115: 500 | N115: 500
A116: 농정과 | B116: 보문면 독죽길 86 | C116: 김O유 | D116: 김관유 | E116: 공공비축미 매입용 톤백저울 지원사업 | F116: 민간자본사업보조 | G116: 1,000천원 * 1식 * 50% | I116: 1,000 | J116: 500 | K116: 500 | L116: 500 | M116: 500 | N116: 500
A117: 농정과 | B117: 보문면 신운길 162-10 | C117: 윤O식 | D117: 윤형식 | E117: 공공비축미 매입용 톤백저울 지원사업 | F117: 민간자본사업보조 | G117: 1,000천원 * 1식 * 50% | I117: 1,000 | J117: 500 | K117: 500 | L117: 500 | M117: 500 | N117: 500
A118: 농정과 | B118: 보문면 장수골길 18 | C118: 안O대 | D118: 안희대 | E118: 공공비축미 매입용 톤백저울 지원사업 | F118: 민간자본사업보조 | G118: 1,000천원 * 1식 * 50% | I118: 1,000 | J118: 500 | K118: 500 | L118: 500 | M118: 500 | N118: 500
A119: 농정과 | B119: 호명면 피실길 51 | C119: 김O구 | D119: 김덕구 | E119: 공공비축미 매입용 톤백저울 지원사업 | F119: 민간자본사업보조 | G119: 1,000천원 * 1식 * 50% | I119: 1,000 | J119: 500 | K119: 500 | L119: 500 | M119: 500 | N119: 500
A120: 농정과 | B120: 호명면 행갈길 42-28 | C120: 김O수 | D120: 김갑수 | E120: 공공비축미 매입용 톤백저울 지원사업 | F120: 민간자본사업보조 | G120: 1,000천원 * 1식 * 50% | I120: 1,000 | J120: 500 | K120: 500 | L120: 500 | M120: 500 | N120: 500
A121: 농정과 | B121: 호명면 설늠2길 13 | C121: 강O식 | D121: 강영식 | E121: 공공비축미 매입용 톤백저울 지원사업 | F121: 민간자본사업보조 | G121: 1,000천원 * 1식 * 50% | I121: 1,000 | J121: 500 | K121: 500 | L121: 500 | M121: 500 | N121: 500
A122: 농정과 | B122: 호명면 논실길 63 | C122: 이O운 | D122: 이상운 | E122: 공공비축미 매입용 톤백저울 지원사업 | F122: 민간자본사업보조 | G122: 1,000천원 * 1식 * 50% | I122: 1,000 | J122: 500 | K122: 500 | L122: 500 | M122: 500 | N122: 500
A123: 농정과 | B123: 호명면 백골길 133-7 | C123: 우O윤 | D123: 우주윤 | E123: 공공비축미 매입용 톤백저울 지원사업 | F123: 민간자본사업보조 | G123: 1,000천원 * 1식 * 50% | I123: 1,000 | J123: 500 | K123: 500 | L123: 500 | M123: 500 | N123: 500
A124: 농정과 | B124: 호명면 소망실길 24 | C124: 이O호 | D124: 이찬호 | E124: 공공비축미 매입용 톤백저울 지원사업 | F124: 민간자본사업보조 | G124: 1,000천원 * 1식 * 50% | I124: 1,000 | J124: 500 | K124: 500 | L124: 500 | M124: 500 | N124: 500
A125: 농정과 | B125: 호명면 원곡길 73-32 | C125: 장O구 | D125: 장사구 | E125: 공공비축미 매입용 톤백저울 지원사업 | F125: 민간자본사업보조 | G125: 1,000천원 * 1식 * 50% | I125: 1,000 | J125: 500 | K125: 500 | L125: 500 | M125: 500 | N125: 500
A126: 농정과 | B126: 호명면 설늠1길 77-5 | C126: 이O탁 | D126: 이상탁 | E126: 공공비축미 매입용 톤백저울 지원사업 | F126: 민간자본사업보조 | G126: 1,000천원 * 1식 * 50% | I126: 1,000 | J126: 500 | K126: 500 | L126: 500 | M126: 500 | N126: 500
A127: 농정과 | B127: 호명면 인포길 10 | C127: 우O수 | D127: 우병수 | E127: 공공비축미 매입용 톤백저울 지원사업 | F127: 민간자본사업보조 | G127: 1,000천원 * 1식 * 50% | I127: 1,000 | J127: 500 | K127: 500 | L127: 500 | M127: 500 | N127: 500
A128: 농정과 | B128: 호명면 오천길 9-1 | C128: 장O덕 | D128: 장용덕 | E128: 공공비축미 매입용 톤백저울 지원사업 | F128: 민간자본사업보조 | G128: 1,000천원 * 1식 * 50% | I128: 1,000 | J128: 500 | K128: 500 | L128: 500 | M128: 500 | N128: 500
A129: 농정과 | B129: 호명면 새마을길 20 | C129: 김O동 | D129: 김칠동 | E129: 공공비축미 매입용 톤백저울 지원사업 | F129: 민간자본사업보조 | G129: 1,000천원 * 1식 * 50% | I129: 1,000 | J129: 500 | K129: 500 | L129: 500 | M129: 500 | N129: 500
A130: 농정과 | B130: 유천면 송지길 61 | C130: 이O희 | D130: 이영희 | E130: 공공비축미 매입용 톤백저울 지원사업 | F130: 민간자본사업보조 | G130: 1,000천원 * 1식 * 50% | I130: 1,000 | J130: 500 | K130: 500 | L130: 500 | M130: 500 | N130: 500
A131: 농정과 | B131: 유천면 초적길 30-6 | C131: 최O수 | D131: 최상수 | E131: 공공비축미 매입용 톤백저울 지원사업 | F131: 민간자본사업보조 | G131: 1,000천원 * 1식 * 50% | I131: 1,000 | J131: 500 | K131: 500 | L131: 500 | M131: 500 | N131: 500
A132: 농정과 | B132: 유천면 매산길 110 | C132: 박O택 | D132: 박찬택 | E132: 공공비축미 매입용 톤백저울 지원사업 | F132: 민간자본사업보조 | G132: 1,000천원 * 1식 * 50% | I132: 1,000 | J132: 500 | K132: 500 | L132: 500 | M132: 500 | N132: 500
A133: 농정과 | B133: 유천면 연천길 16 | C133: 김O석 | D133: 김동석 | E133: 공공비축미 매입용 톤백저울 지원사업 | F133: 민간자본사업보조 | G133: 1,000천원 * 1식 * 50% | I133: 1,000 | J133: 500 | K133: 500 | L133: 500 | M133: 500 | N133: 500
A134: 농정과 | B134: 유천면 성평길 60-5 | C134: 이O희 | D134: 이만희 | E134: 공공비축미 매입용 톤백저울 지원사업 | F134: 민간자본사업보조 | G134: 1,000천원 * 1식 * 50% | I134: 1,000 | J134: 500 | K134: 500 | L134: 500 | M134: 500 | N134: 500
A135: 농정과 | B135: 유천면 성평길 7-67 | C135: 엄O철 | D135: 엄대철 | E135: 공공비축미 매입용 톤백저울 지원사업 | F135: 민간자본사업보조 | G135: 1,000천원 * 1식 * 50% | I135: 1,000 | J135: 500 | K135: 500 | L135: 500 | M135: 500 | N135: 500
A136: 농정과 | B136: 용궁면 장성계길 29-4 | C136: 전O석 | D136: 전영석 | E136: 공공비축미 매입용 톤백저울 지원사업 | F136: 민간자본사업보조 | G136: 1,000천원 * 1식 * 50% | I136: 1,000 | J136: 500 | K136: 500 | L136: 500 | M136: 500 | N136: 500
A137: 농정과 | B137: 용궁면 무이서당길 167 | C137: 이O희 | D137: 이봉희 | E137: 공공비축미 매입용 톤백저울 지원사업 | F137: 민간자본사업보조 | G137: 1,000천원 * 1식 * 50% | I137: 1,000 | J137: 500 | K137: 500 | L137: 500 | M137: 500 | N137: 500
A138: 농정과 | B138: 용궁면 무지길 112 | C138: 박O철 | D138: 박병철 | E138: 공공비축미 매입용 톤백저울 지원사업 | F138: 민간자본사업보조 | G138: 1,000천원 * 1식 * 50% | I138: 1,000 | J138: 500 | K138: 500 | L138: 500 | M138: 500 | N138: 500
A139: 농정과 | B139: 용궁면 대은길 67-12 | C139: 윤O열 | D139: 윤효열 | E139: 공공비축미 매입용 톤백저울 지원사업 | F139: 민간자본사업보조 | G139: 1,000천원 * 1식 * 50% | I139: 1,000 | J139: 500 | K139: 500 | L139: 500 | M139: 500 | N139: 500
A140: 농정과 | B140: 용궁면 향석길 50-6 | C140: 이O정 | D140: 이우정 | E140: 공공비축미 매입용 톤백저울 지원사업 | F140: 민간자본사업보조 | G140: 1,000천원 * 1식 * 50% | I140: 1,000 | J140: 500 | K140: 500 | L140: 500 | M140: 500 | N140: 500
A141: 농정과 | B141: 용궁면 향석길 54 | C141: 윤O식 | D141: 윤화식 | E141: 공공비축미 매입용 톤백저울 지원사업 | F141: 민간자본사업보조 | G141: 1,000천원 * 1식 * 50% | I141: 1,000 | J141: 500 | K141: 500 | L141: 500 | M141: 500 | N141: 500
A142: 농정과 | B142: 개포면 원두골길 89 | C142: 최O환 | D142: 최진환 | E142: 공공비축미 매입용 톤백저울 지원사업 | F142: 민간자본사업보조 | G142: 1,000천원 * 1식 * 50% | I142: 1,000 | J142: 500 | K142: 500 | L142: 500 | M142: 500 | N142: 500
A143: 농정과 | B143: 개포면 용개로 1470 | C143: 이O구 | D143: 이연구 | E143: 공공비축미 매입용 톤백저울 지원사업 | F143: 민간자본사업보조 | G143: 1,000천원 * 1식 * 50% | I143: 1,000 | J143: 500 | K143: 500 | L143: 500 | M143: 500 | N143: 500
A144: 농정과 | B144: 개포면 방터길 29 | C144: 이O환 | D144: 이양환 | E144: 공공비축미 매입용 톤백저울 지원사업 | F144: 민간자본사업보조 | G144: 1,000천원 * 1식 * 50% | I144: 1,000 | J144: 500 | K144: 500 | L144: 500 | M144: 500 | N144: 500
A145: 농정과 | B145: 개포면 우감 2길 20 | C145: 고O곤 | D145: 고대곤 | E145: 공공비축미 매입용 톤백저울 지원사업 | F145: 민간자본사업보조 | G145: 1,000천원 * 1식 * 50% | I145: 1,000 | J145: 500 | K145: 500 | L145: 500 | M145: 500 | N145: 500
A146: 농정과 | B146: 지보면 만화리 660-1 | C146: 전O철 | D146: 전규철 | E146: 공공비축미 매입용 톤백저울 지원사업 | F146: 민간자본사업보조 | G146: 1,000천원 * 1식 * 50% | I146: 1,000 | J146: 500 | K146: 500 | L146: 500 | M146: 500 | N146: 500
A147: 농정과 | B147: 지보면 신풍1리길 8 | C147: 지O농협조합장 | D147: 지보농협조합장 | E147: 공공비축미 매입용 톤백저울 지원사업 | F147: 민간자본사업보조 | G147: 1,000천원 * 1식 * 50% | I147: 1,000 | J147: 500 | K147: 500 | L147: 500 | M147: 500 | N147: 500
A148: 농정과 | B148: 지보면 마전2길 116 | C148: 현O기 | D148: 현세기 | E148: 공공비축미 매입용 톤백저울 지원사업 | F148: 민간자본사업보조 | G148: 1,000천원 * 1식 * 50% | I148: 1,000 | J148: 500 | K148: 500 | L148: 500 | M148: 500 | N148: 500
A149: 농정과 | B149: 지보면 지풍로 415-7 | C149: 김O현 | D149: 김창현 | E149: 공공비축미 매입용 톤백저울 지원사업 | F149: 민간자본사업보조 | G149: 1,000천원 * 1식 * 50% | I149: 1,000 | J149: 500 | K149: 500 | L149: 500 | M149: 500 | N149: 500
A150: 농정과 | B150: 지보면 어신3길 4 | C150: 이O호 | D150: 이정호 | E150: 공공비축미 매입용 톤백저울 지원사업 | F150: 민간자본사업보조 | G150: 1,000천원 * 1식 * 50% | I150: 1,000 | J150: 500 | K150: 500 | L150: 500 | M150: 500 | N150: 500
A151: 농정과 | B151: 지보면 수월2길 145 | C151: 최O택 | D151: 최승택 | E151: 공공비축미 매입용 톤백저울 지원사업 | F151: 민간자본사업보조 | G151: 1,000천원 * 1식 * 50% | I151: 1,000 | J151: 500 | K151: 500 | L151: 500 | M151: 500 | N151: 500
A152: 농정과 | B152: 지보면 수월3길 149 | C152: 최O욱 | D152: 최상욱 | E152: 공공비축미 매입용 톤백저울 지원사업 | F152: 민간자본사업보조 | G152: 1,000천원 * 1식 * 50% | I152: 1,000 | J152: 500 | K152: 500 | L152: 500 | M152: 500 | N152: 500
A153: 농정과 | B153: 지보면 어신3길 46-100 | C153: 정O섭 | D153: 정수섭 | E153: 공공비축미 매입용 톤백저울 지원사업 | F153: 민간자본사업보조 | G153: 1,000천원 * 1식 * 50% | I153: 1,000 | J153: 500 | K153: 500 | L153: 500 | M153: 500 | N153: 500
A154: 농정과 | B154: 지보면 수월2길 152-1 | C154: =REPLACE(D154,2,1,"O") -> 최O인 | D154: 최재인 | E154: 공공비축미 매입용 톤백저울 지원사업 | F154: 민간자본사업보조 | G154: 1,000천원 * 1식 * 50% | I154: 1,000 | J154: 500 | K154: 500 | L154: 500 | M154: 500 | N154: 500
A155: 농정과 | B155: 지보면 만화1길 38-19 | C155: 이O남 | D155: 이창남 | E155: 공공비축미 매입용 톤백저울 지원사업 | F155: 민간자본사업보조 | G155: 1,000천원 * 1식 * 50% | I155: 1,000 | J155: 500 | K155: 500 | L155: 500 | M155: 500 | N155: 500
A156: 농정과 | B156: 풍양면 수산못길 130-3 | C156: 박O조 | D156: 박영조 | E156: 공공비축미 매입용 톤백저울 지원사업 | F156: 민간자본사업보조 | G156: 1,000천원 * 1식 * 50% | I156: 1,000 | J156: 500 | K156: 500 | L156: 500 | M156: 500 | N156: 500
A157: 농정과 | B157: 풍양면 수산못길 94 | C157: 최O락 | D157: 최광락 | E157: 공공비축미 매입용 톤백저울 지원사업 | F157: 민간자본사업보조 | G157: 1,000천원 * 1식 * 50% | I157: 1,000 | J157: 500 | K157: 500 | L157: 500 | M157: 500 | N157: 500
A158: 농정과 | B158: 풍양면 고천길 203-16 | C158: 전O우 | D158: 전창우 | E158: 공공비축미 매입용 톤백저울 지원사업 | F158: 민간자본사업보조 | G158: 1,000천원 * 1식 * 50% | I158: 1,000 | J158: 500 | K158: 500 | L158: 500 | M158: 500 | N158: 500
A159: 농정과 | B159: 풍양면 고천길 167-1 | C159: 전O곤 | D159: 전병곤 | E159: 공공비축미 매입용 톤백저울 지원사업 | F159: 민간자본사업보조 | G159: 1,000천원 * 1식 * 50% | I159: 1,000 | J159: 500 | K159: 500 | L159: 500 | M159: 500 | N159: 500
A160: 농정과 | B160: 풍양면 고천길 160 | C160: 전O진 | D160: 전병진 | E160: 공공비축미 매입용 톤백저울 지원사업 | F160: 민간자본사업보조 | G160: 1,000천원 * 1식 * 50% | I160: 1,000 | J160: 500 | K160: 500 | L160: 500 | M160: 500 | N160: 500
A161: 농정과 | B161: 풍양면 공덕길 165 | C161: 전O철 | D161: 전병철 | E161: 공공비축미 매입용 톤백저울 지원사업 | F161: 민간자본사업보조 | G161: 1,000천원 * 1식 * 50% | I161: 1,000 | J161: 500 | K161: 500 | L161: 500 | M161: 500 | N161: 500
A162: 농정과 | B162: 풍양면 공덕길 160-10 | C162: 전O조 | D162: 전영조 | E162: 공공비축미 매입용 톤백저울 지원사업 | F162: 민간자본사업보조 | G162: 1,000천원 * 1식 * 50% | I162: 1,000 | J162: 500 | K162: 500 | L162: 500 | M162: 500 | N162: 500
A163: 농정과 | B163: 풍양면 봉림길 42-10 | C163: 유O희 | D163: 유상희 | E163: 공공비축미 매입용 톤백저울 지원사업 | F163: 민간자본사업보조 | G163: 1,000천원 * 1식 * 50% | I163: 1,000 | J163: 500 | K163: 500 | L163: 500 | M163: 500 | N163: 500
A164: 농정과 | B164: 풍양면 봉림길 6-1 | C164: 박O수 | D164: 박인수 | E164: 공공비축미 매입용 톤백저울 지원사업 | F164: 민간자본사업보조 | G164: 1,000천원 * 1식 * 50% | I164: 1,000 | J164: 500 | K164: 500 | L164: 500 | M164: 500 | N164: 500
A165: 농정과 | B165: 풍양면 괴당2길 139 | C165: 황O섭 | D165: 황기섭 | E165: 공공비축미 매입용 톤백저울 지원사업 | F165: 민간자본사업보조 | G165: 1,000천원 * 1식 * 50% | I165: 1,000 | J165: 500 | K165: 500 | L165: 500 | M165: 500 | N165: 500
A166: 농정과 | B166: 풍양면 삼탄길 139 | C166: 김O문 | D166: 김종문 | E166: 공공비축미 매입용 톤백저울 지원사업 | F166: 민간자본사업보조 | G166: 1,000천원 * 1식 * 50% | I166: 1,000 | J166: 500 | K166: 500 | L166: 500 | M166: 500 | N166: 500
A167: 농정과 | B167: 풍양면 낙상1길 58-13 | C167: 홍O진 | D167: 홍상진 | E167: 공공비축미 매입용 톤백저울 지원사업 | F167: 민간자본사업보조 | G167: 1,000천원 * 1식 * 50% | I167: 1,000 | J167: 500 | K167: 500 | L167: 500 | M167: 500 | N167: 500
A168: 농정과 | B168: 풍양면 상풍로 1344 | C168: 황O주 | D168: 황후주 | E168: 공공비축미 매입용 톤백저울 지원사업 | F168: 민간자본사업보조 | G168: 1,000천원 * 1식 * 50% | I168: 1,000 | J168: 500 | K168: 500 | L168: 500 | M168: 500 | N168: 500
A169: 농정과 | B169: 풍양면 상풍로 1357 | C169: 이O순 | D169: 이정순 | E169: 공공비축미 매입용 톤백저울 지원사업 | F169: 민간자본사업보조 | G169: 1,000천원 * 1식 * 50% | I169: 1,000 | J169: 500 | K169: 500 | L169: 500 | M169: 500 | N169: 500
A170: 농정과 | B170: 풍양면 낙상1길 34-8 | C170: 이O용 | D170: 이홍용 | E170: 공공비축미 매입용 톤백저울 지원사업 | F170: 민간자본사업보조 | G170: 1,000천원 * 1식 * 50% | I170: 1,000 | J170: 500 | K170: 500 | L170: 500 | M170: 500 | N170: 500
A171: 농정과 | B171: 풍양면 오지길 34-2 | C171: 오O식 | D171: 오성식 | E171: 공공비축미 매입용 톤백저울 지원사업 | F171: 민간자본사업보조 | G171: 1,000천원 * 1식 * 50% | I171: 1,000 | J171: 500 | K171: 500 | L171: 500 | M171: 500 | N171: 500
A172: 농정과 | B172: 풍양면 낙상1길 33 | C172: 신O순 | D172: 신용순 | E172: 공공비축미 매입용 톤백저울 지원사업 | F172: 민간자본사업보조 | G172: 1,000천원 * 1식 * 50% | I172: 1,000 | J172: 500 | K172: 500 | L172: 500 | M172: 500 | N172: 500
A173: 농정과 | B173: 풍양면 영풍로 358 | C173: 김O태 | D173: 김정태 | E173: 공공비축미 매입용 톤백저울 지원사업 | F173: 민간자본사업보조 | G173: 1,000천원 * 1식 * 50% | I173: 1,000 | J173: 500 | K173: 500 | L173: 500 | M173: 500 | N173: 500
A174: 농정과 | B174: 풍양면 와룡길 48-11 | C174: 손O원 | D174: 손화원 | E174: 공공비축미 매입용 톤백저울 지원사업 | F174: 민간자본사업보조 | G174: 1,000천원 * 1식 * 50% | I174: 1,000 | J174: 500 | K174: 500 | L174: 500 | M174: 500 | N174: 500
A175: 농정과 | B175: 풍양면 우망길 177 | C175: 전O숙 | D175: 전용숙 | E175: 공공비축미 매입용 톤백저울 지원사업 | F175: 민간자본사업보조 | G175: 1,000천원 * 1식 * 50% | I175: 1,000 | J175: 500 | K175: 500 | L175: 500 | M175: 500 | N175: 500
A176: 농정과 | B176: 풍양면 우망길 153-28 | C176: 정O영 | D176: 정병영 | E176: 공공비축미 매입용 톤백저울 지원사업 | F176: 민간자본사업보조 | G176: 1,000천원 * 1식 * 50% | I176: 1,000 | J176: 500 | K176: 500 | L176: 500 | M176: 500 | N176: 500
A177: 농정과 | B177: 풍양면 청곡길 136-15 | C177: 정O배 | D177: 정종배 | E177: 공공비축미 매입용 톤백저울 지원사업 | F177: 민간자본사업보조 | G177: 1,000천원 * 1식 * 50% | I177: 1,000 | J177: 500 | K177: 500 | L177: 500 | M177: 500 | N177: 500
A178: 농정과 | B178: 풍양면 청곡길 93 | C178: 정O식 | D178: 정달식 | E178: 공공비축미 매입용 톤백저울 지원사업 | F178: 민간자본사업보조 | G178: 1,000천원 * 1식 * 50% | I178: 1,000 | J178: 500 | K178: 500 | L178: 500 | M178: 500 | N178: 500
A179: 농정과 | B179: 풍양면 청곡길 107 | C179: 정O용 | D179: 정원용 | E179: 공공비축미 매입용 톤백저울 지원사업 | F179: 민간자본사업보조 | G179: 1,000천원 * 1식 * 50% | I179: 1,000 | J179: 500 | K179: 500 | L179: 500 | M179: 500 | N179: 500
A180: 농정과 | B180: 풍양면 풍지로 434-14 | C180: 김O인 | D180: 김병인 | E180: 공공비축미 매입용 톤백저울 지원사업 | F180: 민간자본사업보조 | G180: 1,000천원 * 1식 * 50% | I180: 1,000 | J180: 500 | K180: 500 | L180: 500 | M180: 500 | N180: 500
A181: 농정과 | B181: 풍양면 청감길 25 | C181: 윤O수 | D181: 윤옥수 | E181: 공공비축미 매입용 톤백저울 지원사업 | F181: 민간자본사업보조 | G181: 1,000천원 * 1식 * 50% | I181: 1,000 | J181: 500 | K181: 500 | L181: 500 | M181: 500 | N181: 500
A182: 농정과 | B182: 풍양면 삼강로 743-32 | C182: 강O준 | D182: 강병준 | E182: 공공비축미 매입용 톤백저울 지원사업 | F182: 민간자본사업보조 | G182: 1,000천원 * 1식 * 50% | I182: 1,000 | J182: 500 | K182: 500 | L182: 500 | M182: 500 | N182: 500
A183: 농정과 | B183: 풍양면 청운길 127 | C183: 권O만 | D183: 권영만 | E183: 공공비축미 매입용 톤백저울 지원사업 | F183: 민간자본사업보조 | G183: 1,000천원 * 1식 * 50% | I183: 1,000 | J183: 500 | K183: 500 | L183: 500 | M183: 500 | N183: 500
A184: 농정과 | B184: 풍양면 청운길 106 | C184: 황O수 | D184: 황일수 | E184: 공공비축미 매입용 톤백저울 지원사업 | F184: 민간자본사업보조 | G184: 1,000천원 * 1식 * 50% | I184: 1,000 | J184: 500 | K184: 500 | L184: 500 | M184: 500 | N184: 500
A185: 농정과 | B185: 풍양면 삼강로 751-70 | C185: 정O진 | D185: 정성진 | E185: 공공비축미 매입용 톤백저울 지원사업 | F185: 민간자본사업보조 | G185: 1,000천원 * 1식 * 50% | I185: 1,000 | J185: 500 | K185: 500 | L185: 500 | M185: 500 | N185: 500
A186: 농정과 | B186: 풍양면 풍덕길 129 | C186: 박O하 | D186: 박정하 | E186: 공공비축미 매입용 톤백저울 지원사업 | F186: 민간자본사업보조 | G186: 1,000천원 * 1식 * 50% | I186: 1,000 | J186: 500 | K186: 500 | L186: 500 | M186: 500 | N186: 500
A187: 농정과 | B187: 풍양면 덕암로 1118-14 | C187: 윤O한 | D187: 윤수한 | E187: 공공비축미 매입용 톤백저울 지원사업 | F187: 민간자본사업보조 | G187: 1,000천원 * 1식 * 50% | I187: 1,000 | J187: 500 | K187: 500 | L187: 500 | M187: 500 | N187: 500
A188: 농정과 | B188: 풍양면 덕암로 1118-14 | C188: 윤O현 | D188: 윤시현 | E188: 공공비축미 매입용 톤백저울 지원사업 | F188: 민간자본사업보조 | G188: 1,000천원 * 1식 * 50% | I188: 1,000 | J188: 500 | K188: 500 | L188: 500 | M188: 500 | N188: 500
A189: 농정과 | B189: 풍양면 덕암로 1104 | C189: 윤O한 | D189: 윤재한 | E189: 공공비축미 매입용 톤백저울 지원사업 | F189: 민간자본사업보조 | G189: 1,000천원 * 1식 * 50% | I189: 1,000 | J189: 500 | K189: 500 | L189: 500 | M189: 500 | N189: 500
A190: 농정과 | B190: 풍양면 덕암로 1301-10 | C190: 윤O훈 | D190: 윤종훈 | E190: 공공비축미 매입용 톤백저울 지원사업 | F190: 민간자본사업보조 | G190: 1,000천원 * 1식 * 50% | I190: 1,000 | J190: 500 | K190: 500 | L190: 500 | M190: 500 | N190: 500
A191: 농정과 | B191: 풍양면 효제길 48 | C191: 전O형 | D191: 전진형 | E191: 공공비축미 매입용 톤백저울 지원사업 | F191: 민간자본사업보조 | G191: 1,000천원 * 1식 * 50% | I191: 1,000 | J191: 500 | K191: 500 | L191: 500 | M191: 500 | N191: 500
A192: 농정과 | B192: 풍양면 덕암로 1251 | C192: 황O영 | D192: 황운영 | E192: 공공비축미 매입용 톤백저울 지원사업 | F192: 민간자본사업보조 | G192: 1,000천원 * 1식 * 50% | I192: 1,000 | J192: 500 | K192: 500 | L192: 500 | M192: 500 | N192: 500
A193: 농정과 | B193: 풍양면 효제길 42 | C193: 김O식 | D193: 김영식 | E193: 공공비축미 매입용 톤백저울 지원사업 | F193: 민간자본사업보조 | G193: 1,000천원 * 1식 * 50% | I193: 1,000 | J193: 500 | K193: 500 | L193: 500 | M193: 500 | N193: 500
A194: 농정과 | B194: 풍양면 덕암로 1301-7 | C194: 오O명 | D194: 오수명 | E194: 공공비축미 매입용 톤백저울 지원사업 | F194: 민간자본사업보조 | G194: 1,000천원 * 1식 * 50% | I194: 1,000 | J194: 500 | K194: 500 | L194: 500 | M194: 500 | N194: 500
A195: 농정과 | B195: 풍양면 흔전길 115-1 | C195: 안O수 | D195: 안일수 | E195: 공공비축미 매입용 톤백저울 지원사업 | F195: 민간자본사업보조 | G195: 1,000천원 * 1식 * 50% | I195: 1,000 | J195: 500 | K195: 500 | L195: 500 | M195: 500 | N195: 500
A196: 농정과 | B196: 풍양면 흔전길 50-28 | C196: 안O식 | D196: 안상식 | E196: 공공비축미 매입용 톤백저울 지원사업 | F196: 민간자본사업보조 | G196: 1,000천원 * 1식 * 50% | I196: 1,000 | J196: 500 | K196: 500 | L196: 500 | M196: 500 | N196: 500
A197: 농정과 | B197: 풍양면 흔전길 123-9 | C197: 권O화 | D197: 권영화 | E197: 공공비축미 매입용 톤백저울 지원사업 | F197: 민간자본사업보조 | G197: 1,000천원 * 1식 * 50% | I197: 1,000 | J197: 500 | K197: 500 | L197: 500 | M197: 500 | N197: 500
A198: 농정과 | B198: 풍양면 흔전길 44 | C198: 안O열 | D198: 안대열 | E198: 공공비축미 매입용 톤백저울 지원사업 | F198: 민간자본사업보조 | G198: 1,000천원 * 1식 * 50% | I198: 1,000 | J198: 500 | K198: 500 | L198: 500 | M198: 500 | N198: 500
A199: 농정과 | B199: 풍양면 풍지로 163-11 | C199: 유O상 | D199: 유택상 | E199: 공공비축미 매입용 톤백저울 지원사업 | F199: 민간자본사업보조 | G199: 1,000천원 * 1식 * 50% | I199: 1,000 | J199: 500 | K199: 500 | L199: 500 | M199: 500 | N199: 500
A200: 농정과 | B200: 풍양면 풍지로 163-6 | C200: 유O택 | D200: 유재택 | E200: 공공비축미 매입용 톤백저울 지원사업 | F200: 민간자본사업보조 | G200: 1,000천원 * 1식 * 50% | I200: 1,000 | J200: 500 | K200: 500 | L200: 500 | M200: 500 | N200: 500
... 1255 more rows
